Workbook

Sheet C
C1: =Workbook.Title -> Analysys Mason - Modelo de costos coubicacion fija
A3: Información
A5: Título | B5: Analysys Mason - Modelo de costos coubicacion fija
A6: Objectivo | B6: Determinar precios orientados a costos para el servicio de coubicación fija en la infraestructura pasiva fija del AEP
A8: Versión | B8: 2 de noviembre 2016
A9: Estatus | B9: Approved for release
B10: Under construction
B11: Work in progress
B12: Ready for review
B13: Approved for release
A14: Autor | B14: Guillermo Fernández Castellanos, David de Antonio Monte
A15: Email | B15: guillermo.fernandez@analysysmason.com
B16: david.de.antonio@analysysmason.com

Sheet S
C1: Style Guidelines
A6: Input cell styles
A7: Use these styles to identify inputs to a model
A8: NB These styles change most aspects of a cells formatting (all except Number and Alignment)
B10: Input Parameter | C10: 100 | D10: unlocked | E10: An input to the model that it is expected the user will change (change at will)
B12: Input Parameter | C12: 250 | D12: unlocked | E12: Consider using Data Validation to ensure that only acceptable values are entered
B13: Minimum | C13: 100
B14: Maximum | C14: 300
B16: Input Parameter | C16: 300 | D16: unlocked | E16: If a parameter can take only one of a small number of values, consider using Data Validation Allow List with In-cell dropdown selected
B17: Acceptable values | C17: 100
C18: 200
C19: 300
B21: Input Data | C21: 100 | D21: unlocked | E21: A piece of real data (only change if you have better data)
B23: Input Estimate | C23: 100 | D23: unlocked | E23: An estimate used in the absence of real data (only change if you have a better estimate, or real data )
B25: Input Calculation | C25: 100 | D25: locked | E25: An input to the model that has, none the less, been calculated from other inputs (e.g. interpolated input values)
B27: Input Link | C27: 100 | D27: locked | E27: An input to this part of the model, which is linked to a source on this or another worksheet within this workbook
B29: Input Link (different Workbook) | C29: 100 | D29: locked | E29: An input to this part of the model, which is linked to a source on a worksheet in a different workbook
A31: Other cell styles
A32: Use these styles to identify the role of other cells in a model
A33: NB These styles change a variety of different aspects of cell formatting (as appropriate to the context)
B35: Calculation | C35: 100 | D35: locked | E35: A calculation of the model
B37: Total | C37: 123.45 | E37: A total (use if not part of a "Sub-total row" or a "Total row" in a table - see below)
B39: Checksum | C39: 0 | D39: locked | E39: A side calculation intended solely to cross check a result (and which therefore should not be referenced anywhere else in the model)
B41: Checksum | C41: 0.1 | D41: locked | E41: Consider using Format Conditional Formatting to highlight unacceptable results of cross check calculations (e.g. non-zero)
B43: Output | C43: 100 | E43: A key result from this part of the model (in particular one that will be used elsewhere in the model)
B45: Name | C45: Name | D45: locked | E45: An Excel Name applying to one or more adjacent cells (use Insert Name Create to actually create the Excel Names)
B47: Note | C47: Note | E47: A note (NB smaller than standard font size)
B49: Highlight | C49: 100 | E49: A cell that is special in some way
B51: Unhighlight | C51: 100 | E51: And one that isn't anymore
A53: Number styles
A54: Use these styles to consistently format numbers (and dates)
A55: NB All number styles use the decimal symbol and digit grouping symbol (thousands separator) defined under Regional Options in Control Panel. So if you want to change them do it there, and not here in Excel !
A56: NB Most number styles leave space for a ')' to the right of the number, but only the Currency styles actually use '(…)' for negatives
C58: Number | D58: Number (2dp) | E58: Percentage | F58: Percentage (2dp) | G58: Currency | H58: Currency (2dp) | I58: Comma | J58: Percent
B59: Positive | C59: 1234.56 | D59: 123.45 | E59: 0.1234 | F59: 0.1234 | G59: 1234.56 | H59: 123.45 | I59: 1234.56 | J59: 0.1234
B60: Negative | C60: -1234.56 | D60: -123.45 | E60: -0.1234 | F60: -0.1234 | G60: -1234.56 | H60: -123.45 | I60: -1234.56 | J60: -0.1234
B61: Zero | C61: 0 | D61: 0 | E61: 0 | F61: 0 | G61: 0 | H61: 0 | I61: 0 | J61: 0
B62: Text | C62: Text | D62: Text | E62: Text | F62: Text | G62: Text | H62: Text | I62: Text | J62: Text
C64: Currency EUR | D64: Currency EUR (2dp) | E64: Currency Euro | F64: Currency Euro (2dp)
B65: Positive | C65: 1234.56 | D65: 123.45 | E65: 1234.56 | F65: 123.45
B66: Negative | C66: -1234.56 | D66: -123.45 | E66: -1234.56 | F66: -123.45
B67: Zero | C67: 0 | D67: 0 | E67: 0 | F67: 0
B68: Text | C68: Text | D68: Text | E68: Text | F68: Text
C70: Currency USD | D70: Currency USD (2dp) | E70: Currency Dollar | F70: Currency Dollar (2dp)
B71: Positive | C71: 1234.56 | D71: 123.45 | E71: 1234.56 | F71: 123.45
B72: Negative | C72: -1234.56 | D72: -123.45 | E72: -1234.56 | F72: -123.45
B73: Zero | C73: 0 | D73: 0 | E73: 0 | F73: 0
B74: Text | C74: Text | D74: Text | E74: Text | F74: Text
C76: Currency GBP | D76: Currency GBP (2dp) | E76: Currency Pound | F76: Currency Pound (2dp)
B77: Positive | C77: 1234.56 | D77: 123.45 | E77: 1234.56 | F77: 123.45
B78: Negative | C78: -1234.56 | D78: -123.45 | E78: -1234.56 | F78: -123.45
B79: Zero | C79: 0 | D79: 0 | E79: 0 | F79: 0
B80: Text | C80: Text | D80: Text | E80: Text | F80: Text
C82: Date | D82: Date (Month) | E82: Date (Year)
B83: Date | C83: 2002-12-01 | D83: 2002-12-01 | E83: 2002-12-01
A85: Heading styles
A86: Use these styles to format headings
A87: NB These styles change only the font used in a cell
B89: H1 | C89: Title | E89: Heading level 1
B91: H2 | C91: Title | E91: Heading level 2
B93: H3 | C93: Title | E93: Heading level 3
B95: H4 | C95: Title | E95: Heading level 4
A97: Table styles
A98: Use these styles to consistently format tables
A99: NB These styles change a variety of different aspects of cell formatting (as appropriate to the context)
A101: A simple table
B102: Column label (left aligned) | C102: Column label | D102: Column label | E102: Column label | F102: Column label
B103: Row label
B104: Row label
B105: Row label
B106: (Table finish row)
A108: A more complex table
D109: Column label (no wrap) | F109: Column label (no wrap)
B110: Column label (left aligned) | C110: Column label (not bold) | D110: Column label | E110: Column label | F110: Column label | G110: Column label
B111: Row label | D111: (Table unshading) | F111: (Table shading)
B112: Row label (indent)
B113: Sub-total row
B114: Total row
A117: Examples of use
A118: NB To avoid having spurious names in this template the names shown below have not actually been created
A120: Number of subscribers (year end)
B121: Service | C121: Units | D121: Notes | E121: 2000 | F121: 2001 | G121: 2002 | H121: 2003 | I121: Subscribers.Year End.By Service
B122: Dial-up | C122: Subscribers | D122: Linear interpolation | E122: 1000000 | F122: =E122+($H122-$E122)/3 -> 1000000 | G122: 1000000 | H122: 1000000
B123: ADSL | C123: Subscribers | D123: Linear interpolation | E123: 100000 | F123: 133333.3333 | G123: 166666.6667 | H123: 200000
B124: Cable Modem | C124: Subscribers | D124: Linear interpolation | E124: 50000 | F124: 100000 | G124: 150000 | H124: 200000
B125: Total | C125: Subscribers | E125: =SUM(E122:E124) -> 1150000 | F125: =SUM(F122:F124) -> 1233333.333 | G125: =SUM(G122:G124) -> 1316666.667 | H125: =SUM(H122:H124) -> 1400000
A127: Number of subscribers (year end)
B128: Service | C128: Units | D128: Notes | E128: 2000 | F128: 2001 | G128: 2002 | H128: 2003
B129: Dial-up | C129: Subscribers | D129: From above | E129: =$E$122:$H$124 -> 1000000 | F129: 1000000 | G129: 1000000 | H129: 1000000
B130: ADSL | C130: Subscribers | D130: From above | E130: 100000 | F130: 133333.3333 | G130: 166666.6667 | H130: 200000
B131: Cable Modem | C131: Subscribers | D131: From Cable_modem.xls | E131: 50000 | F131: 100000 | G131: 150000 | H131: 200000
B132: Total | C132: Subscribers | E132: =SUM(E129:E131) -> 1150000 | F132: =SUM(F129:F131) -> 1233333.333 | G132: =SUM(G129:G131) -> 1316666.667 | H132: =SUM(H129:H131) -> 1400000
A135: Number of subscribers (simple year average)
B136: Service | C136: Units | D136: Notes | E136: 2000 | F136: 2001 | G136: 2002 | H136: 2003
B137: Dial-up | C137: Subscribers | F137: =(F129+E129)/2 -> 1000000 | G137: 1000000 | H137: 1000000
B138: ADSL | C138: Subscribers | F138: 116666.6667 | G138: 150000 | H138: 183333.3333
B139: Cable Modem | C139: Subscribers | F139: 75000 | G139: 125000 | H139: 175000
B140: Total | C140: Subscribers | F140: =SUM(F137:F139) -> 1191666.667 | G140: =SUM(G137:G139) -> 1275000 | H140: =SUM(H137:H139) -> 1358333.333 | I140: Subscribers.Year Average.Total

Sheet L
C1: Listas utilizadas en el modelo
C3: Hundred, thousand, million
C4: 100 | D4: hundred
C5: 1000 | D5: thousand
C6: 1000000 | D6: million
C8: Spare, void and not available
C9: espacio vacante | D9: spare
C10: void | D10: void
C11: N/A | D11: not.available
C13: TRUE, FALSE
C14: TRUE
C15: FALSE
C16: true.false
C18: Lista de activos | E18: Componentes de central de Telmex | I18: Categorias tamaño de central de Telmex (bluces de abonado) | J18: MIN | K18: MAX | L18: Avg | N18: Componentes del predio
B19: 1 | C19: Predio | D19: 1 | E19: Sala MDF/ODF AEP | H19: 1 | I19: Pequeña | J19: 0 | K19: 499 | L19: =ROUND(AVERAGE(J19:K19),) -> 250 | M19: 1 | N19: Area caseta central
B20: 2 | C20: Central del AEP | D20: 2 | E20: Sala coubicación CS | H20: 2 | I20: Media | J20: =K19+1 -> 500 | K20: 1499 | L20: =ROUND(AVERAGE(J20:K20),) -> 1000 | M20: 2 | N20: Area sala coubicacion externa
B21: 3 | C21: Sala coubicación externa | D21: 3 | E21: Sala de control | H21: 3 | I21: Grande | J21: =K20+1 -> 1500 | K21: 4999 | L21: 3250 | M21: 3 | N21: Area libre
B22: 4 | C22: Subestación electrica | D22: 4 | E22: Sala de switching del AEP | H22: 4 | I22: Muy grande | J22: 5000 | K22: 1000000 | L22: 10000 | M22: 4 | N22: Area total
B23: 5 | C23: Fuente de energia de respaldo (planta de emergencia) | D23: 5 | E23: Sala equipos de transmisión del AEP | I23: tamaño.central.Telmex | N23: lista.componentes.predio
B24: 6 | C24: Aire acondicionado | D24: 6 | E24: Sala subestacion electrica
B25: 7 | C25: Racks | D25: 7 | E25: Sala planta de emergencia
B26: 8 | C26: =spare -> espacio vacante | D26: 8 | E26: Sala baterias
C27: lista.activos | D27: 9 | E27: Espacio de overheads
D28: 10 | E28: =spare -> espacio vacante
D29: 11 | E29: =spare -> espacio vacante
D30: 12 | E30: =spare -> espacio vacante
E31: lista.componentes.central.telmex
C33: Propiedad del predio
C34: Telmex
C35: Tercero en arrendamiento
C36: Tercero en comodato
C37: propiedad.predio
C39: Geotipo (zonas)
C40: Alta
C41: Media
C42: Baja
C43: =spare -> espacio vacante
C44: geotipo
C46: Año
B47: 1 | C47: 2016
B48: 2 | C48: =C47+1 -> 2017
B49: 3 | C49: =C48+1 -> 2018
B50: 4 | C50: 2019
B51: 5 | C51: 2020
B52: 6 | C52: 2021
B53: 7 | C53: 2022
B54: 8 | C54: 2023
B55: 9 | C55: 2024
B56: 10 | C56: 2025
C57: año
C59: Tipo de coubicación
B60: 1 | C60: Cerrada
B61: 2 | C61: Basica
B62: 3 | C62: Equipada
C63: tipo.coubicacion
C65: Tipo de coubicación cerrada
C66: 4 | D66: m2
C67: 9 | D67: m2
C68: tipo.coubicacion.cerrada
C70: Check
C71: Actualizar selección | D71: actualizar.seleccion
C72: ERROR | D72: error
C73: OK | D73: ok
C75: Sí / No
C76: Sí | D76: si
C77: No | D77: no
C78: disponibilidad
C80: Lista de servicios
C81: Coubicación
C82: Subestación electrica
C83: Fuente de energia de respaldo
C84: Aire acondicionado
C85: Racks
C86: lista.servicios
C88: Corriente de energia
C89: DC_48V
C90: AC_127V
C91: corriente.energia
C93: Vida útil del activo
B94: 1 | C94: Economica
B95: 2 | C95: Contable
C96: vida.util
C98: Costos considerados
C99: Corrientes
C100: Históricos
C101: costos.considerados
C103: Perfil de recuperación de costos
C104: Anualidad
C105: Depreciación lineal
C106: perfil.recuperacion.costos
C109: Factores de conversion
C110: 3.517 | D110: kW.por.ton
C111: 24 | D111: horas.por.dia
C112: 30 | D112: dias.por.mes
C113: 12 | D113: meses.por.año
C115: Perfil de recuperación de costos
C116: Generador diesel
C117: Baterias
C118: opcion.fuente.energia.respaldo

Sheet Control
A1: Panel de control
D3: CHECK de los parametros eligidos | E3: =IF(AND(H78=ok,H80=ok,K84=ok,H81=ok,H69=ok,H70=ok,H71=ok,H74=ok),ok,actualizar.seleccion) -> OK
D5: Elemento | E5: Unidad | F5: Valor | G5: Nombre 1 | H5: Check / Indices | I5: Nombre 2 | K5: Notas
A7: Resultados
B8: Contraprestacion mensual por CS
C10: Coubicacion cerrada | F10: Contraprestación mensual
D11: ="Zona "&geotipo.activo&", "&tipo.coubicacion.activo&" , "&IF(solicitacion.fuente.energia.respaldo.activo.CS=TRUE,"con respaldo", "sin respaldo") -> Zona Media, Cerrada , con respaldo | E11: m2 | F11: =IF(tipo.coubicacion.activo<>"Cerrada",0,Precio!J195/espacio.coubicacion.cerrada/12) -> 962.1949705 | G11: output.coubicacion.cerrada
C13: Coubicacion basica | F13: Contraprestación mensual
D14: ="Zona "&geotipo.activo&", "&tipo.coubicacion.activo&" , "&IF(solicitacion.fuente.energia.respaldo.activo.CS=TRUE,"con respaldo", "sin respaldo") -> Zona Media, Cerrada , con respaldo | E14: 20 m2 | F14: =IF(tipo.coubicacion.activo<>"Basica",0,Precio!J195/espacio.coubicacion.basica/12)*20 -> 0 | G14: output.coubicacion.basica
C16: Coubicacion equipada | F16: Contraprestación mensual
D17: ="Zona "&geotipo.activo&", "&tipo.coubicacion.activo&" , "&IF(solicitacion.fuente.energia.respaldo.activo.CS=TRUE,"con respaldo", "sin respaldo") -> Zona Media, Cerrada , con respaldo | E17: por rack | F17: =IF(tipo.coubicacion.activo<>"Equipada",0,Precio!J195/F38/12) -> 0 | G17: output.coubicacion.equipada
A19: Control
B20: Tipo de coubicacion
C21: Tipo de coubicacion
D23: Tipo de coubicacion | F23: Cerrada | G23: tipo.coubicacion.activo | H23: =INDEX(L!$B$60:$B$62,MATCH(tipo.coubicacion.activo,tipo.coubicacion,0)) -> 1
C25: Parámetros de coubicación cerrada
D27: Espacio requerido por los CSs | E27: m2 | F27: =F28*numero.CS.activo -> 22.96 | G27: espacio.coubicacion.cerrada
D28: Espacio requerido por cada CS | E28: m2 | F28: 4
C30: Parámetros de coubicación básica
D32: Espacio requerido total | E32: m2 | F32: 20 | G32: espacio.coubicacion.basica
C34: Parámetros de coubicación equipada
D36: Solicitación de racks | F36: =IF(tipo.coubicacion.activo="Equipada",TRUE,FALSE) -> FALSE | G36: solicitacion.racks.activo
D38: Unidades racks totales | E38: # | F38: 12 | G38: espacio.racks.activo | H38: =F38*solicitacion.racks.activo*calculos.secundarios.dimension.racks -> 0
B40: Demanda
C41: Características del sitio
D42: Geotipo | F42: Media | G42: geotipo.activo
D43: Propriedad del predio | F43: Tercero en arrendamiento | G43: propriedad.predio.activo
D44: ID del predio | F44: =propriedad.predio.activo&geotipo.activo -> Tercero en arrendamientoMedia | G44: id.predio.activo
D45: Bucles terminados en la central | E45: # | F45: 1450 | G45: bucles.central.telmex
D46: Dimensión de la central | F46: =INDEX(tamaño.central.Telmex,MATCH(bucles.central.telmex,L!$J$19:$J$22,1)) -> Media | G46: tipo.central.telmex.activa
D47: Número de plantas | E47: # | F47: =IF(OR(tipo.central.telmex.activa=L!I19,tipo.central.telmex.activa=L!I20),2,3) -> 2 | G47: numero.plantas.central.telmex.activo
D49: ID de la central | F49: =tipo.central.telmex.activa&geotipo.activo -> MediaMedia | G49: id.central.telmex.activo
C51: Parámetros de escenario
D53: Año activo | E53: año | F53: 2017 | G53: año.activo
D54: WACC | E54: % | F54: 0.0991 | G54: wacc | K54: Fuente: WACC calculado para el modelo de interconexión fija
D56: Vida útil | F56: Economica | G56: vida.util.activo | H56: =INDEX(L!B94:B95,MATCH(vida.util.activo,vida.util,0)) -> 1 | I56: vida.util.activo.indice
D57: Costos considerados | F57: Corrientes | G57: costos.considerados.activo | H57: =MATCH(costos.considerados.activo,costos.considerados,0) -> 1 | I57: costos.considerados.activo.indice
D58: Perfil de la recuperación de costes | F58: Anualidad | G58: perfil.recuperacion.costos.activo | H58: =MATCH(perfil.recuperacion.costos.activo,perfil.recuperacion.costos,0) -> 1 | I58: perfil.recuperacion.costos.activo.indice
D60: Mark-up de gastos comunes - capex y opex
D61: Overhead mark-up capex | E61: % | F61: 0.08 | G61: markup.overhead.capex
D62: Overhead mark-up opex | E62: % | F62: 0.08 | G62: markup.overhead.opex
C64: Parametros de coubicacion
D66: Espacio incremental asignado a CS | F66: TRUE | G66: espacio.incremental.activo
D68: Número medio de CS activos por geotipo
D69: =geotipo -> Alta | F69: 6.24 | G69: numero.CS.activo.alta | H69: =IF(numero.CS.activo.alta>0,ok, error) -> OK
D70: Media | F70: 5.74 | G70: numero.CS.activo.media | H70: =IF(numero.CS.activo.media>0,ok, error) -> OK
D71: Baja | F71: 2.51 | G71: numero.CS.activo.baja | H71: =IF(numero.CS.activo.baja>0,ok, error) -> OK
D72: espacio vacante | F72: 0
D74: Número de CS activos (igual para todos geotipos) | F74: 2 | H74: =IF(F74>0,ok, error) -> OK
D76: ¿Número de CS establecido por geotipo? | F76: TRUE | G76: CS.por.geotipo
D78: Número de CS activos | E78: # | F78: =IF(AND(IF(F76=FALSE,F74,INDEX(F69:F72,MATCH(geotipo.activo,geotipo,0)))>5,NOT(tipo.coubicacion.activo=L!C60)),5,IF(F76=FALSE,F74,INDEX(F69:F72,MATCH(geotipo.activo,geotipo,0)))) -> 5.74 | G78: numero.CS.activo | H78: =IF(numero.CS.activo>0,ok, error) -> OK
D80: CS activos con CE | E80: # | F80: 0 | G80: numero.CS.activo.CE | H80: =IF(numero.CS.activo.CE>=0,ok, error) -> OK | K80: CI = Coubicación Interna, CE = Coubicación Externa
D81: CS activos con CI | E81: # | F81: =numero.CS.activo-numero.CS.activo.CE -> 5.74 | G81: numero.CS.activo.CI | H81: =IF(numero.CS.activo.CI>=0,ok,error) -> OK
D83: Espacio exclusivo para AEP | E83: m2 | F83: =area.sala.MDF.AEP+area.sala.switching+area.sala.transmision -> 55.488 | H83: =F83 -> 55.488 | I83: espacio.exclusivo.AEP
D84: Espacio coubicación por CS | E84: m2 | F84: =CHOOSE($H$23,$F$28,$F$32/numero.CS.activo,espacio.racks.activo/numero.CS.activo)*G84 -> 4 | G84: TRUE | H84: =F84 -> 4 | I84: espacio.coubicacion.activo.porCS | K84: =IF(espacio.coubicacion.activo.porCS<4,error,ok) -> OK
D86: Asignación de espacio de las salas de la central del AEP a los CS
D87: Sala de control | F87: =espacio.incremental.activo -> TRUE | G87: sala.control.CS.activo
D88: Sala de switching | F88: =FALSE -> FALSE | G88: sala.switching.CS.activo | K88: La sala es de exclusiva utilizacion del AEP
D89: Sala equipos de transmision del AEP | F89: =FALSE -> FALSE | G89: sala.equipos.transmision.CS.activo | K89: La sala es de exclusiva utilizacion del AEP
D90: Sala subestacion electrica | F90: =espacio.incremental.activo -> TRUE | G90: sala.subestacion.electrica.CS.activo
D91: Sala planta de emergencia | F91: =espacio.incremental.activo -> TRUE | G91: sala.planta.emergencia.CS.activo
D92: Sala baterias | F92: =espacio.incremental.activo -> TRUE | G92: sala.baterias.CS.activo
D93: Espacio de overheads (pasillos, escaleras, servicios, etc.) | F93: =espacio.incremental.activo -> TRUE | G93: espacio.overheads.CS.activo
C95: Consumo de energia
D96: Corriente de energia | F96: AC_127V | G96: corriente.energia.activa
D97: Factor de conversión kW a kVA | F97: =1/0.8 -> 1.25 | G97: factor.conversion.kW.kVA
D98: Factor de conversión kVA a kW | F98: 0.8 | G98: factor.conversion.kVA.kW
D99: Consumo de los equipos del AEP | E99: kW | F99: =F83/20*F100 -> 61.536192 | I99: consumo.equipos.AEP
D100: Consumo medio para 20m2 de coubicación | E100: kW | F100: 22.18
D101: Consumo para coubicacion solicitada | E101: kW | F101: =espacio.coubicacion.activo.porCS*numero.CS.activo/20*F100 -> 25.46264
D102: Consumo de los equipos por CS | E102: kW | F102: =F101/numero.CS.activo -> 4.436 | H102: =F102 -> 4.436 | I102: consumo.equipos.porCS
B104: Parámetros para el dimensionamiento
C105: Reglas de dimensionamiento
D106: Aire acondicionado
D107: Solicitacion de aire acondicionado | F107: TRUE | G107: solicitacion.aire.acondicionado.activo | K107: Todos o ninguno, porque estan en la misma sala de CI
D108: Capacidad de aire acondicionado requerida / utilizada por unidad de superficie | E108: ton/m2 | F108: 0.1 | G108: aire.acondicionado.capacidad.superficie
D109: Espacio maniobra (% del espacio de las salas) | F109: 0.05 | G109: aire.acondicionado.espacio.maniobra | H109: =solicitacion.aire.acondicionado.activo*F109 -> 0.05
D111: Fuente de energia de respaldo (grupos electrogenos Diesel + baterias)
D112: Solicitación de fuente de energia de respaldo - AEP | F112: =TRUE -> TRUE | G112: fuente.energia.respaldo.activo.AEP
D113: Solicitación de fuente de energia de respaldo - CS | F113: TRUE | G113: solicitacion.fuente.energia.respaldo.activo.CS
D114: Opción de fuente de energia de respaldo | F114: Generador Diesel + Baterias | G114: opcion.fuente.energia.respaldo.activa | K114: Fuente: Telmex
D115: Potencia fuente en % potencia transformadores | E115: % | F115: 0.8 | G115: capacidad.fuente.energia.respaldo | K115: % de la potencia de los transformadores que debe ser cubierta por la fuente de energia de respaldo (generador)
D116: Horas de respaldo (baterias) | E116: horas | F116: =IF(geotipo.activo="Baja",backup.minimo.baterias.rural,backup.minimo.baterias.urbano) -> 4 | G116: horas.backup.fuente.energia.respaldo.baterias | K116: Bancos de Baterías, proporciona la energía eléctrica de corriente directa en caso de pérdida de corriente alterna de la máquina de emergencia y/o de la acometida de CFE.
D117: Backup (horas) en zonas urbanas | E117: horas | F117: 4 | G117: backup.minimo.baterias.urbano | K117: El tiempo de respaldo de las baterías depende de si se cuenta o no con máquina de emergencia en el sitio y el tiempo que tarda en llegar personal de mantenimiento desde el centro de mantenimiento más próximo. El tiempo de respaldo puede variar, siendo el mínimo de 4 horas.
D118: Backup (horas) en zonas rurales | E118: horas | F118: 8 | G118: backup.minimo.baterias.rural | K118: Asumimos 8 horas en zonas rurales para reflejar la mayor probabilided de cortes
D119: Horas de respaldo (generador diesel) | E119: horas | F119: =IF(geotipo.activo="Baja",backup.minimo.generador.diesel.rural,backup.minimo.generador.diesel.urbano) -> 24 | G119: horas.backup.fuente.energia.respaldo.generador.diesel | K119: Máquina de emergencia (Motor de Combustión Interna acoplado a un Generador), el cual genera corriente alterna a 220/127 V y que sustituye a la acometida de CFE en caso de interrupción.
D120: Backup (horas) en zonas urbanas | E120: horas | F120: 24 | G120: backup.minimo.generador.diesel.urbano | K120: Se dimensionan por la carga que deben soportar en cada sitio atendiendo principalmente plantas de rectificación, aire acondicionado y alumbrado de emergencia. El combustible (Diesel) normado es para 48 horas continuas de operación. Para area urbanas elegimos reflejar una eficiencia mayor debido a la mayor calidad de la red electrica en zonas urbanas.
D121: Backup (horas) en zonas rurales | E121: horas | F121: 48 | G121: backup.minimo.generador.diesel.rural | K121: Se dimensionan por la carga que deben soportar en cada sitio atendiendo principalmente plantas de rectificación, aire acondicionado y alumbrado de emergencia. El combustible (Diesel) normado es para 48 horas continuas de operación.
C123: Otros parametros de dimensionamiento
D125: Predio
D126: Predio adicional con respecto al terreno necesario para el edificio de la central (area predio >> area central) | F126: TRUE | G126: predio.activo | K126: El mark-up representa la área adicional al espacio ocupado por la central y sala de coubicacion externa
D127: Mark-up area ocupada -> area total, para predios urbanos | E127: % | F127: =50% -> 0.5 | G127: markup.predio
D128: Mark-up area predio urbano -> area predio rural | E128: % | F128: =IF(geotipo.activo="Baja",0.2,0)*predio.activo -> 0 | G128: markup.zona.rural
D129: Área libre asignada a CS | F129: =espacio.incremental.activo -> TRUE | G129: area.libre.CS | K129: Permite elegir si los costos de la área no ocupada del predio son asignados a los CS
D131: Caseta central
D132: Mark-up espacio overheads | E132: % | F132: 0.1 | G132: markup.espacio.overheads | H132: =F132*espacio.incremental.activo -> 0.1
D133: Mark-up area salas -> area exterior | E133: % | F133: 0 | G133: markup.area.exterior.central.telmex
D135: Sala de coubicacion
D136: Mark-up para sala AEP | E136: % | F136: 0 | G136: markup.sala.AEP
D137: Mark-up para sala CS | E137: % | F137: 0 | G137: markup.sala.CS

Sheet Caracteristicas tecnicas
A1: Caracteristicas tecnicas
A3: Dimensionado de las salas | C3: Unidad | H3: Nombre | I3: Fuente / Notas | J3: Notas
E4: 2.5 | F4: 2 | G4: 1.5
D5: =TRANSPOSE(tamaño.central.Telmex) -> Pequeña | E5: Media | F5: Grande | G5: Muy grande | H5: calculos.secundarios.tamano.caseta
B6: Sala MDF/ODF AEP | C6: m2 | D6: =D22 -> 13.674 | E6: 14.448 | F6: 16.77 | G6: 22.962 | H6: calculos.secundarios.Sala MDF
B7: Sala de control | C7: m2 | D7: 10 | E7: 10 | F7: 15 | G7: 15 | H7: calculos.secundarios.Sala de control
B8: Sala de switching / DSLAM del AEP | C8: m2 | D8: =D30 -> 15.96 | E8: 20.52 | F8: 29.64 | G8: 38.76 | H8: calculos.secundarios.Sala de switching del AEP
B9: Sala equipos de transmisión del AEP | C9: m2 | D9: =D8 -> 15.96 | E9: 20.52 | F9: 29.64 | G9: 38.76 | H9: calculos.secundarios.Sala equipos de transmisión del AEP
B12: Estimacion bottom-up del tamaño de la sala MDF
B13: Blucles promedio entrantes en la central | C13: # | D13: =TRANSPOSE(L!L19:L22) -> 250 | E13: 1000 | F13: 3250 | G13: 10000
B14: Overhead para dimensionamiento MDF | C14: % | D14: 0.5 | E14: 0.5 | F14: 0.5 | G14: 0.5 | I14: Fuente: Politecnico di Torino / Telecom Italia
B15: Bucles para dimensionamiento de MDF | C15: # | D15: =D13*(1+D14) -> 375 | E15: =E13*(1+E14) -> 1500 | F15: 4875 | G15: 15000
B16: Espacio ocupado por un modulo MDF para 800 bucles | C16: bucles | D16: 800 | E16: =D16 -> 800 | F16: 800 | G16: 800 | I16: Fuente: Politecnico di Torino / Telecom Italia
B17: Ancho | C17: m | D17: 0.18 | E17: =D17 -> 0.18 | F17: 0.18 | G17: 0.18 | H17: (a)
B18: Produndidad | C18: m | D18: 1.3 | E18: =D18 -> 1.3 | F18: =E18 -> 1.3 | G18: 1.3 | H18: (p)
B19: Numero minimo de modulos | C19: # | D19: 1 | E19: =D19 -> 1 | F19: 1 | G19: 1
B20: Numero de modulos requeridos | C20: # | D20: =MAX(D19,ROUNDUP(D13/D16,)) -> 1 | E20: =MAX(E19,ROUNDUP(E13/E16,)) -> 2 | F20: =MAX(F19,ROUNDUP(F13/F16,)) -> 5 | G20: =MAX(G19,ROUNDUP(G13/G16,)) -> 13 | H20: (n)
B21: Espacio de maniobra (por lado) | C21: m | D21: 1.5 | E21: 1.5 | F21: 1.5 | G21: 1.5 | H21: (d) | I21: Incluye espacio para aire acondicionados y nichos de acometida
B22: Dimensiones sala MDF | C22: m2 | D22: =(D20*D17+2*D21)*(D18+2*D21) -> 13.674 | E22: =(E20*E17+2*E21)*(E18+2*E21) -> 14.448 | F22: =(F20*F17+2*F21)*(F18+2*F21) -> 16.77 | G22: =(G20*G17+2*G21)*(G18+2*G21) -> 22.962 | H22: =(n*a+2*d)*(p+2*d)
B24: Estimacion bottom-up del tamaño de la sala switch / DSLAM
B25: Dimensiones estandar de un rack
B26: Ancho | C26: m | D26: 0.6 | E26: =D26 -> 0.6 | F26: 0.6 | G26: 0.6
B27: Profundidad | C27: m | D27: 0.8 | E27: =D27 -> 0.8 | F27: 0.8 | G27: 0.8
B28: Espacio de maniobra (por lado) | C28: m | D28: =D$21 -> 1.5 | E28: 1.5 | F28: 1.5 | G28: 1.5
B29: Numero de racks | C29: # | D29: 2 | E29: 4 | F29: 8 | G29: 12
B30: Dimensiones sala switching / DSLAM | C30: m2 | D30: =(D29*D26+2*D28)*(D27+2*D28) -> 15.96 | E30: =(E29*E26+2*E28)*(E27+2*E28) -> 20.52 | F30: 29.64 | G30: 38.76
B32: Estimacion bottom-up del tamaño de la sala transmisión
B33: Dimensiones estandar de un rack
B34: Ancho | C34: m | D34: =D26 -> 0.6 | E34: 0.6 | F34: 0.6 | G34: 0.6
B35: Profundidad | C35: m | D35: 0.8 | E35: 0.8 | F35: 0.8 | G35: 0.8
B36: Espacio de maniobra (por lado) | C36: m | D36: =D$21 -> 1.5 | E36: 1.5 | F36: 1.5 | G36: 1.5
B37: Numero de racks | C37: # | D37: 2 | E37: 4 | F37: 8 | G37: 12
B38: Dimensiones sala transmisión | C38: m2 | D38: =(D37*D34+2*D36)*(D35+2*D36) -> 15.96 | E38: =(E37*E34+2*E36)*(E35+2*E36) -> 20.52 | F38: =(F37*F34+2*F36)*(F35+2*F36) -> 29.64 | G38: =(G37*G34+2*G36)*(G35+2*G36) -> 38.76
B41: Dimensionado de las salas de energia
D43: Dimensionado
B44: Espacio ocupado por subestacion electrica (sin espacio de manobra) | C44: m2/kW | D44: 0.5 | E44: calculos.secundarios.Sala subestacion electrica
B45: Espacio ocupado por la planta de emergencia (sin espacio de manobra) | C45: m2 | D45: =INDEX($I$52:$I$59,IFERROR(MATCH(C49-0.000001,$B$52:$B$59,1),0)+1)+INDEX($C$52:$C$59,IFERROR(MATCH(C49-0.000001,$B$52:$B$59,1),0)+1) -> 4.695947368 | E45: calculos.secundarios.Sala planta de emergencia | I45: Fuente: http://www.ottomotores.com.mx/grupos_electrogenos
B46: Espacio ocupado por bateria de c. 200-230Ah (sin espacio de manobra) | C46: m2/bateria | D46: 0.07 | E46: m2.por.bateria | I46: Fuente: en Ericsson BBS (ver foto abajo) caben 4 baterias en un espacio de 0.22m2 -> 0.06m2 por bateria. Segun este otro provedor las baterias ocupan 0.2x0.36=0.07m2 / http://www.electriccarpartscompany.com/40V-48V-58V-br-200Ah-9kW-11kW-br-2C-3C-EV-Hybrid-Battery-Pack-br-UL-CE-SGS-RoHS-RBRC-ISO-and-TS-Certified-br-Custom-Lithium-LiFePO4-Cylindrical-Battery-Pack-br-Custom-Built-Cylindrical-Li-ion-LiPo-Battery-Pack_p_127.html
B49: Consumo de los equipos subestación eléctrica para FER | C49: =potencia.minima.fuente.energia.respaldo*factor.conversion.kW.kVA -> 86.998832 | D49: kVA | E49: =INDEX($F$52:$F$59,IFERROR(MATCH(C49-0.000001,$B$52:$B$59,1),0)+1)*(C49/INDEX($B$52:$B$59,IFERROR(MATCH(C49-0.000001,$B$52:$B$59,1),0)+1)) -> 431.5142067 | F49: litros
B51: Potencia del generador diesel (kVA) | C51: m2 (motor + generador) | E51: consumo (l/h) @ 100% | F51: consumo (l/h) @ 100% @ backup | G51: metros cubicos requeridos | H51: altura (m) | I51: metros cuadrados requeridos
B52: 375 | C52: 3.717 | E52: =AVERAGE(I85:I86) -> 77.5 | F52: =E52*horas.backup.fuente.energia.respaldo.generador.diesel -> 1860 | G52: =F52/1000 -> 1.86 | H52: =AVERAGE(O85:O86)/100 -> 1.9 | I52: =G52/H52 -> 0.9789473684
B53: 500 | C53: 4.095 | E53: =AVERAGE(I87:I88) -> 103 | F53: 2472 | G53: =F53/1000 -> 2.472 | H53: =AVERAGE(O87:O88)/100 -> 1.975 | I53: =G53/H53 -> 1.25164557
B54: 750 | C54: 5.6925 | E54: =AVERAGE(I89:I91) -> 133.3333333 | F54: 3200 | G54: 3.2 | H54: =AVERAGE(O89:O91)/100 -> 2.086666667 | I54: 1.533546326
B55: 1000 | C55: 8.3955 | E55: =AVERAGE(I92:I93) -> 203.5 | F55: 4884 | G55: 4.884 | H55: =AVERAGE(O92:O93)/100 -> 2.31 | I55: 2.114285714
B56: 1500 | C56: 10.1835 | E56: =AVERAGE(I94:I96) -> 273.3333333 | F56: 6560 | G56: 6.56 | H56: =AVERAGE(O94:O96)/100 -> 2.503333333 | I56: 2.620505992
B57: 2200 | C57: 11.9328 | E57: =AVERAGE(I97:I99) -> 424.3333333 | F57: 10184 | G57: 10.184 | H57: =AVERAGE(O97:O99)/100 -> 2.85 | I57: 3.573333333
B58: 2500 | C58: 27.36 | E58: =AVERAGE(I100:I101) -> 574 | F58: 13776 | G58: 13.776 | H58: =AVERAGE(O100:O101)/100 -> 3 | I58: 4.592
B59: 3125 | C59: 30 | E59: =AVERAGE(I102:I105) -> 713.75 | F59: 17130 | G59: 17.13 | H59: =AVERAGE(O102:O105)/100 -> 3.15 | I59: 5.438095238
A61: Equipos electricos | D61: Unidad | H61: Nombre | I61: Fuente / Notas | J61: Notas
B63: Baterias
I64: Fuente: http://www.meibat.com/en/references/List/show/telecomunications-175
C65: V | D65: Ah | I65: Fuente: Ericsson
B66: Tipo de baterias que el modelo asume | C66: 48 | D66: 200
B68: Interpolacion de datos Ericsson | C68: power | D68: minutes
B69: x1 | C69: =1220/thousand -> 1.22 | D69: =7.6*60 -> 456 | E69: y1
B70: x2 | C70: =1970/thousand -> 1.97 | D70: =4.4*60 -> 264 | E70: y2
B71: Slope: | C71: =(D69-D70)/(C69-C70) -> -256
B72: Equation | C72: =-((C71*C69)-D69) -> 768.32
B76: Dimensionamento de baterias
B77: Consumo de los equipos para FER | C77: =potencia.minima.fuente.energia.respaldo -> 69.5990656 | D77: kW
B78: Horas minimas de backup | C78: =horas.backup.fuente.energia.respaldo.baterias -> 4 | D78: h
B79: Capacidad de baterias con con el backup definido | C79: =(C72-C78*60)/-C71 -> 2.06375 | D79: kW
B80: Numero de baterias | C80: =ROUNDUP(C77/C79,0) -> 34 | D80: numero.baterias
B82: Generador diesel
B84: Modelo | C84: kVA | D84: KWe | E84: kVA | F84: KWe | G84: Motor | H84: Cilindros | I84: Consumo de combustible @ 100% de la carga en litros/hr | J84: Generador | K84: Dimensiones (largo x ancho x alto) cm | L84: KG | M84: Largo (cm) | N84: Ancho (cm) | O84: Alto (cm) | P84: kVA | Q84: m2
B85: TLY250 | C85: 312 | D85: 250 | E85: N/A | F85: N/A | G85: 6R1600G70S | H85: 6 | I85: 74 | J85: LSA46.2L6 | K85: 315 x 118 x 190 | L85: 2099 | M85: 315 | N85: 118 | O85: 190 | P85: =C85 -> 312 | Q85: =M85*N85/10000 -> 3.717
B86: TLY300 | C86: 375 | D86: 300 | E86: N/A | F86: N/A | G86: 6R1600G80S | H86: 6 | I86: 81 | J86: LSA46.2L6 | K86: 315 x 118 x 190 | L86: 2164 | M86: 315 | N86: 118 | O86: 190 | P86: 375 | Q86: 3.717
B87: TLY350 | C87: 437 | D87: 350 | E87: N/A | F87: N/A | G87: 8V1600G70S | H87: 8 | I87: 99 | J87: LSA47.2VS2 | K87: 315 x 125 x 196 | L87: 2605 | M87: 315 | N87: 125 | O87: 196 | P87: 437 | Q87: 3.9375
B88: TLY400 | C88: 500 | D88: 400 | E88: N/A | F88: N/A | G88: 8V1600G80S | H88: 8 | I88: 107 | J88: LSA47.2VS2 | K88: 315 x 130 x 199 | L88: 2676 | M88: 315 | N88: 130 | O88: 199 | P88: 500 | Q88: 4.095
B89: TLY450 | C89: 562 | D89: 450 | E89: N/A | F89: N/A | G89: 10V1600G70S | H89: 10 | I89: 126 | J89: LSA47.2S4 | K89: 345 x 125 x 204 | L89: 3724 | M89: 345 | N89: 125 | O89: 204 | P89: 562 | Q89: 4.3125
B90: TLY500 | C90: 625 | D90: 500 | E90: N/A | F90: N/A | G90: 10V1600G80S | H90: 10 | I90: 124 | J90: LSA47.2S5 | K90: 345 x 125 x 204 | L90: 3724 | M90: 345 | N90: 125 | O90: 204 | P90: 625 | Q90: 4.3125
B91: TLY600 | C91: 750 | D91: 600 | E91: N/A | F91: N/A | G91: 12V1600G80S | H91: 12 | I91: 150 | J91: LSA47.2M8 | K91: 345 x 165 x 218 | L91: 3537 | M91: 345 | N91: 165 | O91: 218 | P91: 750 | Q91: 5.6925
B92: TLY700 | C92: 875 | D92: 700 | E92: 875 | F92: 700 | G92: 12V2000G45 | H92: 12 | I92: 190 | J92: LSA49.1S4 | K92: 435 x 193 x 231 | L92: 5176 | M92: 435 | N92: 193 | O92: 231 | P92: 875 | Q92: 8.3955
B93: TLY800 | C93: 1000 | D93: 800 | E93: 1000 | F93: 800 | G93: 12V2000G85 | H93: 12 | I93: 217 | J93: LSA49.1M7 | K93: 435 x 193 x 231 | L93: 5576 | M93: 435 | N93: 193 | O93: 231 | P93: 1000 | Q93: 8.3955
B94: TLY900 | C94: 1125 | D94: 900 | E94: 1125 | F94: 900 | G94: 16V2000G45 | H94: 16 | I94: 241 | J94: LSA49.1L9 | K94: 465 x 219 x 249 | L94: 6188 | M94: 465 | N94: 219 | O94: 249 | P94: 1125 | Q94: 10.1835
B95: TLY1000 | C95: 1250 | D95: 1000 | E95: 1250 | F95: 1000 | G95: 16V2000G85 | H95: 16 | I95: 267 | J95: LSA49.1L11 | K95: 465 x 219 x 249 | L95: 6298 | M95: 465 | N95: 219 | O95: 249 | P95: 1250 | Q95: 10.1835
B96: TLY1200 | C96: 1500 | D96: 1200 | E96: 1500 | F96: 1200 | G96: 18V2000G85 | H96: 18 | I96: 312 | J96: LSA50.2M6 | K96: 465 x 219 x 253 | L96: 7717 | M96: 465 | N96: 219 | O96: 253 | P96: 1500 | Q96: 10.1835
B97: TLY1250 | C97: 1562 | D97: 1250 | E97: 1562 | F97: 1250 | G97: 12V4000G43 | H97: 12 | I97: 407 | J97: LSA50.2M6 | K97: 528 x 226 x 285 | L97: 11204 | M97: 528 | N97: 226 | O97: 285 | P97: 1562 | Q97: 11.9328
B98: TLY1500 | C98: 1875 | D98: 1500 | E98: 1875 | F98: 1500 | G98: 12V4000G43 | H98: 12 | I98: 407 | J98: LSA50.2L7 | K98: 528 x 226 x 285 | L98: 11474 | M98: 528 | N98: 226 | O98: 285 | P98: 1875 | Q98: 11.9328
B99: TLY1750 | C99: 2187 | D99: 1750 | E99: 2187 | F99: 1750 | G99: 12V4000G83 | H99: 12 | I99: 459 | J99: LSA50.2VL10 | K99: 528 x 226 x 285 | L99: 11974 | M99: 528 | N99: 226 | O99: 285 | P99: 2187 | Q99: 11.9328
B100: TLY2000 | C100: 2500 | D100: 2000 | E100: 2500 | F100: 2000 | G100: 16V4000G43 | H100: 16 | I100: 538 | J100: LS641S55 | K100: 720 x 380 x 300 | L100: 20200 | M100: 720 | N100: 380 | O100: 300 | P100: 2500 | Q100: 27.36
B101: TLY2250 | C101: 2812 | D101: 2250 | E101: 2812 | F101: 2250 | G101: 16V4000G83 | H101: 16 | I101: 610 | J101: LS641L70 | K101: 720 x 380 x 300 | L101: C/F | M101: 720 | N101: 380 | O101: 300 | P101: 2812 | Q101: 27.36
B102: TLY2500 | C102: 3125 | D102: 2250 | E102: 3125 | F102: 2250 | G102: 16V4000G83L | H102: 16 | I102: 688 | J102: LS641VL90 | K102: 720 x 380 x 300 | L102: C/F | M102: 720 | N102: 380 | O102: 300 | P102: 3125 | Q102: 27.36
B103: TLY2500 | C103: 3125 | D103: 2500 | E103: 3125 | F103: 2500 | G103: 20V4000G43 | H103: 20 | I103: 624 | J103: LS641VL90 | K103: 750 x 400 x 320 | L103: C/F | M103: 750 | N103: 400 | O103: 320 | P103: 3125 | Q103: 30
B104: TLY2800 | C104: 3500 | D104: 2500 | E104: 3500 | F104: 2500 | G104: 20V4000G83 | H104: 20 | I104: 703 | J104: LS841M70 | K104: 750 x 400 x 320 | L104: C/F | M104: 750 | N104: 400 | O104: 320 | P104: 3500 | Q104: 30
B105: TLY3250 | C105: 4062 | D105: 3250 | E105: 4062 | F105: 3250 | G105: 20V4000G83L | H105: 20 | I105: 840 | J105: LS841VL85 | K105: 750 x 400 x 320 | L105: C/F | M105: 750 | N105: 400 | O105: 320 | P105: 4062 | Q105: 30
A108: Racks
B109: Racks | E109: Unidad | F109: Nombre | I109: Fuente
B111: Dimension de los racks | D111: m2 | E111: =20/12 -> 1.666666667 | F111: calculos.secundarios.dimension.racks | I111: Telmex

Sheet Dimensionado
A1: Dimensionado
D3: Elemento | E3: Unidad | F3: Valor | G3: Nombre | I3: Notas
A5: Uso de Sitios, Predios y Espacios Físicos
A6: 1 | B6: =INDEX(lista.activos,$A6) -> Predio
D8: Área ocupada | E8: m2 | F8: =area.exterior.central.telmex+area.sala.coubicacion.externa.CS -> 76.23376458 | G8: area.ocupada.predio
D9: Mark-up para área total | E9: % | F9: =markup.predio*predio.activo -> 0.5
D10: Mark-up zona rural | E10: % | F10: =markup.zona.rural -> 0
D11: Área total | E11: m2 | F11: =F8*(1+F9)*(1+F10) -> 114.3506469 | G11: area.total.predio
A13: 2 | B13: =INDEX(lista.activos,$A13) -> Central del AEP
D15: Área de las salas | E15: m2 | F15: =(area.sala.MDF.AEP+area.sala.coubicacion.CS+area.sala.control+area.sala.switching+area.sala.transmision+area.sala.subestacion.electrica+area.sala.emergencia+area.sala.baterias+area.espacio.overheads) -> 152.4675292 | G15: area.salas.central.telmex
D16: Área exterior caseta central | E16: m2 | F16: =area.salas.central.telmex*(1+markup.area.exterior.central.telmex)/numero.plantas.central.telmex.activo -> 76.23376458 | G16: area.exterior.central.telmex | I16: Nota: La area exterior de la central de Telmex es la suma de la area de las salas, didivido por el numero de pisos, multiplicado por un mark-up (para se considerar las areas comunes y de construccion)
B18: 1 | C18: =INDEX(lista.componentes.central.telmex,$B18) -> Sala MDF/ODF AEP
D20: Sala MDF/ODF AEP | E20: m2 | F20: =INDEX(calculos.secundarios.Sala_MDF,MATCH(tipo.central.telmex.activa,calculos.secundarios.tamano.caseta,0)) -> 14.448 | G20: area.sala.MDF.AEP
B22: 2 | C22: =INDEX(lista.componentes.central.telmex,$B22) -> Sala coubicación CS
D24: Dimensionamento sala coubicacion CS | E24: m2 | F24: =numero.CS.activo.CI*espacio.coubicacion.activo.porCS*(1+markup.sala.CS) -> 22.96 | G24: area.sala.coubicacion.CS
B26: 3 | C26: =INDEX(lista.componentes.central.telmex,$B26) -> Sala de control
D28: Dimensionamento sala de control | E28: m2 | F28: =INDEX(calculos.secundarios.Sala_de_control,MATCH(tipo.central.telmex.activa,calculos.secundarios.tamano.caseta,0)) -> 10 | G28: area.sala.control
B30: 4 | C30: =INDEX(lista.componentes.central.telmex,$B30) -> Sala de switching del AEP
D32: Dimensionamento sala de switching | E32: m2 | F32: =INDEX(calculos.secundarios.Sala_de_switching,MATCH(tipo.central.telmex.activa,calculos.secundarios.tamano.caseta,0)) -> 20.52 | G32: area.sala.switching
B34: 5 | C34: =INDEX(lista.componentes.central.telmex,$B34) -> Sala equipos de transmisión del AEP
D36: Dimensionamento sala de transmision | E36: m2 | F36: =INDEX(calculos.secundarios.Sala_equipos_de_transmisión_del_AEP,MATCH(tipo.central.telmex.activa,calculos.secundarios.tamano.caseta,0)) -> 20.52 | G36: area.sala.transmision
B38: 6 | C38: =INDEX(lista.componentes.central.telmex,$B38) -> Sala subestacion electrica
D40: Dimensionamento sala de subestacion electrica | E40: m2 | F40: =area.sala.subestacion.electrica.AEP+area.sala.subestacion.electrica.CSs -> 43.499416 | G40: area.sala.subestacion.electrica
D42: Espacio requerido AEP | E42: m2 | F42: =IF(tipo.central.telmex.activa="Pequeña",0,consumo.equipos.AEP*calculos.secundarios.Sala_subestacion_electrica) -> 30.768096 | G42: area.sala.subestacion.electrica.AEP
D43: Espacio requerido CSs | E43: m2 | F43: =IF(tipo.central.telmex.activa="Pequeña",0,consumo.equipos.porCS*numero.CS.activo*calculos.secundarios.Sala_subestacion_electrica) -> 12.73132 | G43: area.sala.subestacion.electrica.CSs
B45: 7 | C45: =INDEX(lista.componentes.central.telmex,$B45) -> Sala planta de emergencia
D47: Mark-up espacio de operación | E47: % | F47: 0.5
D49: Dimensionamento sala de emergencia | E49: m2 | F49: =calculos.secundarios.Sala_planta_de_emergencia*(1+F47) -> 7.043921053 | G49: area.sala.emergencia
B51: 8 | C51: =INDEX(lista.componentes.central.telmex,$B51) -> Sala baterias
D53: Mark-up espacio de operación | E53: % | F53: 0.5 | I53: El calculo del espacio ya incluye el espacio de manobra
D55: Dimensionamento sala de baterias | E55: m2 | F55: =m2.por.bateria*numero.baterias*(1+F53) -> 3.57 | G55: area.sala.baterias
B58: 9 | C58: =INDEX(lista.componentes.central.telmex,$B58) -> Espacio de overheads
D60: Dimensionamento de espacio de overheads | E60: m2 | F60: =(area.sala.MDF.AEP+area.sala.coubicacion.CS+area.sala.control+area.sala.switching+area.sala.transmision+area.sala.emergencia+area.sala.baterias)*markup.espacio.overheads -> 9.906192105 | G60: area.espacio.overheads
A62: 3 | B62: =INDEX(lista.activos,$A62) -> Sala coubicación externa
D64: Espacio de coubicación activo por CS | F64: =espacio.coubicacion.activo.porCS -> 4
D65: CSs activos con CE | F65: =numero.CS.activo.CE -> 0
D67: Dimensionamento sala coubicacion CE | F67: =(F64*F65)*(1+markup.sala.CS) -> 0 | G67: area.sala.coubicacion.externa.CS
A69: 4 | B69: =INDEX(lista.activos,$A69) -> Subestación electrica
D71: Potencia de los equipos del AEP | E71: kW | F71: =consumo.equipos.AEP -> 61.536192
D73: Potencia de los equipos de los CSs | E73: kW | F73: =F74*F75 -> 25.46264
D74: Consumo de los equipos por CS | E74: kW | F74: =consumo.equipos.porCS -> 4.436
D75: CSs activos | E75: kW | F75: =numero.CS.activo -> 5.74
D77: Potencia de los equipos | E77: kW | F77: =IF(tipo.central.telmex.activa="Pequeña",0,F71+F73) -> 86.998832 | G77: consumo.equipos.subestacion.electrica | I77: Nota: Si la central es pequeña, no hay subestación eléctrica
A79: 5 | B79: =INDEX(lista.activos,$A79) -> Fuente de energia de respaldo (planta de emergencia)
D81: Potencia transformadores subestacion electrica | E81: kW | F81: =F73+F71 -> 86.998832
D83: Potencia transformadores subestacion electrica - AEP | E83: kW | F83: =consumo.equipos.AEP*fuente.energia.respaldo.activo.AEP -> 61.536192
D84: Potencia transformadores subestacion electrica - CSs | E84: kW | F84: =consumo.equipos.porCS*numero.CS.activo*solicitacion.fuente.energia.respaldo.activo.CS -> 25.46264
D86: Potencia minima de la fuente de energia de respaldo | E86: kW | F86: =SUM(F83:F84)*capacidad.fuente.energia.respaldo -> 69.5990656 | G86: potencia.minima.fuente.energia.respaldo
A88: Clima
A89: 6 | B89: =INDEX(lista.activos,$A89) -> Aire acondicionado
D91: Compartición de aire acondicionado | F91: =solicitacion.aire.acondicionado.activo -> TRUE
D93: Área de las salas con aire acondicionado | E93: m2 | F93: =area.salas.central.telmex-area.sala.coubicacion.CS+(area.sala.coubicacion.CS*F91) -> 152.4675292 | I93: Todas las salas tienen aire acondicionado con excepcion de la sala de coubicacion de los CS si estos no solicitaren aire acondcionado
D94: Capacidad de aire acondicionado requerida / utilizada por unidad de superficie | E94: ton/m2 | F94: =aire.acondicionado.capacidad.superficie -> 0.1
D95: Capacidad utilizada | E95: ton | F95: =F93*F94 -> 15.24675292 | G95: capacidad.utilizada.aire.acondicionado
A97: Racks
A98: 7 | B98: =INDEX(lista.activos,$A98) -> Racks
D100: Solicitación de racks | F100: =solicitacion.racks.activo -> FALSE
D102: Dimensión por rack | E102: m2 | F102: =calculos.secundarios.dimension.racks -> 1.666666667
D104: Numero de racks | E104: # | F104: =ROUNDUP(espacio.racks.activo/F102,0) -> 0 | G104: unidades.racks.activo

Sheet Costos unitarios
A1: Costos unitarios
B3: Año de referencia | C3: 2015
B4: Año activo | C4: =año.activo -> 2017 | G4: CAPEX | N4: OPEX | V4: VIDA UTIL | AA4: NOTAS
C5: =C4-C3 -> 2
A7: Uso de Sitios, Predios y Espacios Físicos
A8: 1 | B8: =INDEX(lista.activos,$A8) -> Predio
C9: Propiedad del predio | D9: Geotipo del predio | E9: Identificador | G9: CAPEX unitario obras civiles de adecuacion (MXN/m2) | H9: Tendencia de costos | I9: CAPEX unitario obras civiles de adecuacion (MXN/m2) - Año activo | J9: CAPEX unitario de adquisicion (MXN/m2) | K9: Tendencia de costos | L9: CAPEX unitario de adquisicion (MXN/m2) - Año activo | N9: OPEX anual alquiler (MXN/año) | O9: Tendencia de costos | P9: OPEX anual alquiler (MXN/año/m2) - Año activo | Q9: OPEX de mantenimiento (MXN/año/m2) | R9: Tendencia de costos | S9: OPEX de mantenimiento (% capex) | T9: OPEX de mantenimiento (MXN/año/m2) - Año activo | V9: Vida util economica | W9: Vida util contable | X9: Vida util activa | Y9: Vida util restante
C10: Telmex | D10: Alta | E10: =C10&D10 -> TelmexAlta | G10: 525 | H10: 0.05 | I10: =G10*(1+H10)^$C$5 -> 578.8125 | J10: 8240 | K10: 0.03 | L10: =J10*(1+K10)^$C$5 -> 8741.816 | N10: 0 | O10: 0.03 | P10: =N10*(1+O10)^$C$5 -> 0 | Q10: =(G10+J10)*S10 -> 0 | R10: 0.03 | S10: 0 | T10: =Q10*(1+R10)^$C$5 -> 0 | V10: 80 | W10: 80 | X10: =CHOOSE(vida.util.activo.indice,'Costos unitarios'!V10,'Costos unitarios'!W10) -> 80 | Y10: =MAX(0,X10-$C$5) -> 78
C11: Telmex | D11: Media | E11: =C11&D11 -> TelmexMedia | G11: 578 | H11: 0.05 | I11: =G11*(1+H11)^$C$5 -> 637.245 | J11: 8240 | K11: 0.03 | L11: =J11*(1+K11)^$C$5 -> 8741.816 | N11: 0 | O11: 0.03 | P11: =N11*(1+O11)^$C$5 -> 0 | Q11: =(G11+J11)*S11 -> 0 | R11: 0.03 | S11: 0 | T11: =Q11*(1+R11)^$C$5 -> 0 | V11: =$V$10 -> 80 | W11: =$W$10 -> 80 | X11: =$X$10 -> 80 | Y11: =MAX(0,X11-$C$5) -> 78
C12: Telmex | D12: Baja | E12: TelmexBaja | G12: 630 | H12: 0.05 | I12: 694.575 | J12: 8240 | K12: 0.03 | L12: 8741.816 | N12: 0 | O12: 0.03 | P12: 0 | Q12: 0 | R12: 0.03 | S12: 0 | T12: 0 | V12: =$V$10 -> 80 | W12: =$W$10 -> 80 | X12: =$X$10 -> 80 | Y12: 78
C13: Telmex | D13: espacio vacante | E13: Telmexespacio vacante | I13: 0 | L13: 0 | P13: 0 | Q13: 0 | T13: 0 | Y13: 0
C14: Tercero en arrendamiento | D14: Alta | E14: Tercero en arrendamientoAlta | G14: 525 | H14: 0.05 | I14: 578.8125 | J14: 0 | K14: 0.03 | L14: 0 | N14: 0 | O14: 0.03 | P14: 0 | Q14: 0 | R14: 0.03 | S14: 0 | T14: 0 | V14: 80 | W14: 80 | X14: 80 | Y14: 78
C15: Tercero en arrendamiento | D15: Media | E15: Tercero en arrendamientoMedia | G15: 578 | H15: 0.05 | I15: 637.245 | J15: 0 | K15: 0.03 | L15: 0 | N15: 0 | O15: 0.03 | P15: 0 | Q15: 0 | R15: 0.03 | S15: 0 | T15: 0 | V15: 80 | W15: 80 | X15: 80 | Y15: 78
C16: Tercero en arrendamiento | D16: Baja | E16: Tercero en arrendamientoBaja | G16: 630 | H16: 0.05 | I16: 694.575 | J16: 0 | K16: 0.03 | L16: 0 | N16: 0 | O16: 0.03 | P16: 0 | Q16: 0 | R16: 0.03 | S16: 0 | T16: 0 | V16: 80 | W16: 80 | X16: 80 | Y16: 78
C17: Tercero en arrendamiento | D17: espacio vacante | E17: Tercero en arrendamientoespacio vacante | I17: 0 | L17: 0 | P17: 0 | Q17: 0 | T17: 0 | Y17: 0
C18: Tercero en comodato | D18: Alta | E18: Tercero en comodatoAlta | G18: 525 | H18: 0.05 | I18: 578.8125 | J18: 0 | K18: 0.03 | L18: 0 | N18: 0 | O18: 0.03 | P18: 0 | Q18: 0 | R18: 0.03 | S18: 0 | T18: 0 | V18: 80 | W18: 80 | X18: 80 | Y18: 78
C19: Tercero en comodato | D19: Media | E19: Tercero en comodatoMedia | G19: 578 | H19: 0.05 | I19: 637.245 | J19: 0 | K19: 0.03 | L19: 0 | N19: 0 | O19: 0.03 | P19: 0 | Q19: 0 | R19: 0.03 | S19: 0 | T19: 0 | V19: 80 | W19: 80 | X19: 80 | Y19: 78
C20: Tercero en comodato | D20: Baja | E20: Tercero en comodatoBaja | G20: 630 | H20: 0.05 | I20: 694.575 | J20: 0 | K20: 0.03 | L20: 0 | N20: 0 | O20: 0.03 | P20: 0 | Q20: 0 | R20: 0.03 | S20: 0 | T20: 0 | V20: 80 | W20: 80 | X20: 80 | Y20: 78
C21: Tercero en comodato | D21: espacio vacante | E21: Tercero en comodatoespacio vacante | I21: 0 | L21: 0 | P21: 0 | Q21: 0 | T21: 0 | Y21: 0
E22: identificador.predio | I22: capex.unitario.obras.adecuacion.predio | L22: capex.unitario.acquisicion.predio | P22: opex.anual.alquiler.predio | T22: opex.anual.mantenimiento.predio | X22: vida.util.predio | Y22: vida.util.restante.predio
A24: 2 | B24: =INDEX(lista.activos,$A24) -> Central del AEP
C25: Tamaño central | D25: Geotipo | G25: CAPEX unitario obras civiles (MXN/m2) | H25: Tendencia de costos | I25: CAPEX unitario (MXN/m2) - Año activo | N25: OPEX anual alquiler (MXN/año) | O25: Tendencia de costos | P25: OPEX anual alquiler (MXN/año) - Año activo | Q25: OPEX de mantenimiento (MXN/año) | R25: Tendencia de costos | S25: OPEX de mantenimiento (% capex) | T25: OPEX de mantenimiento (MXN/año) - Año activo | V25: Vida util economica | W25: Vida util contable | X25: Vida util activa | Y25: Vida util restante
C26: Pequeña | D26: Alta | E26: =C26&D26 -> PequeñaAlta | G26: =AVERAGE(G28,G31) -> 11000 | H26: 0.03 | I26: =G26*(1+H26)^$C$5 -> 11669.9 | N26: =($N$45*INDEX($O$49:$O$52,MATCH(D26,$N$49:$N$52,0))*area.salas.central.telmex/(area.salas.central.telmex+area.sala.coubicacion.externa.CS)) -> 175866.9057 | O26: 0.03 | P26: =N26*(1+O26)^$C$5 -> 186577.2003 | Q26: =Q45*area.salas.central.telmex/(area.salas.central.telmex+area.sala.coubicacion.externa.CS) -> 150313.5801 | R26: 0.03 | S26: 0 | T26: =Q26*(1+R26)^$C$5 -> 159467.6772 | V26: 70 | W26: 30 | X26: =CHOOSE(vida.util.activo.indice,'Costos unitarios'!V26,'Costos unitarios'!W26) -> 70 | Y26: =MAX(0,X26-$C$5) -> 68
C27: Pequeña | D27: Media | E27: =C27&D27 -> PequeñaMedia | G27: =AVERAGE(G28,G31) -> 11000 | H27: 0.03 | I27: =G27*(1+H27)^$C$5 -> 11669.9 | N27: =($N$45*INDEX($O$49:$O$52,MATCH(D27,$N$49:$N$52,0))*area.salas.central.telmex/(area.salas.central.telmex+area.sala.coubicacion.externa.CS)) -> 97450.00114 | O27: 0.03 | P27: =N27*(1+O27)^$C$5 -> 103384.7062 | Q27: =$Q$26 -> 150313.5801 | R27: 0.03 | S27: 0 | T27: =Q27*(1+R27)^$C$5 -> 159467.6772 | V27: =$V$26 -> 70 | W27: =$W$26 -> 30 | X27: =$X$26 -> 70 | Y27: =MAX(0,X27-$C$5) -> 68
C28: Pequeña | D28: Baja | E28: PequeñaBaja | G28: 7870 | H28: 0.03 | I28: 8349.283 | N28: =($N$45*INDEX($O$49:$O$52,MATCH(D28,$N$49:$N$52,0))*area.salas.central.telmex/(area.salas.central.telmex+area.sala.coubicacion.externa.CS)) -> 54275.43781 | O28: 0.03 | P28: 57580.81197 | Q28: =$Q$26 -> 150313.5801 | R28: 0.03 | S28: 0 | T28: 159467.6772 | V28: =$V$26 -> 70 | W28: =$W$26 -> 30 | X28: =$X$26 -> 70 | Y28: 68
C29: Pequeña | D29: espacio vacante | E29: Pequeñaespacio vacante | I29: 0 | P29: 0 | S29: 0 | T29: 0 | Y29: 0
C30: Media | D30: Alta | E30: MediaAlta | G30: =G31 -> 14130 | H30: 0.03 | I30: =G30*(1+H30)^$C$5 -> 14990.517 | N30: =($N$45*INDEX($O$49:$O$52,MATCH(D30,$N$49:$N$52,0))*area.salas.central.telmex/(area.salas.central.telmex+area.sala.coubicacion.externa.CS)) -> 175866.9057 | O30: 0.03 | P30: 186577.2003 | Q30: 150313.5801 | R30: 0.03 | S30: 0 | T30: 159467.6772 | V30: 70 | W30: 30 | X30: 70 | Y30: =MAX(0,X30-$C$5) -> 68
C31: Media | D31: Media | E31: MediaMedia | G31: 14130 | H31: 0.03 | I31: 14990.517 | N31: =($N$45*INDEX($O$49:$O$52,MATCH(D31,$N$49:$N$52,0))*area.salas.central.telmex/(area.salas.central.telmex+area.sala.coubicacion.externa.CS)) -> 97450.00114 | O31: 0.03 | P31: =N31*(1+O31)^$C$5 -> 103384.7062 | Q31: 150313.5801 | R31: 0.03 | S31: 0 | T31: 159467.6772 | V31: 70 | W31: 30 | X31: 70 | Y31: 68
C32: Media | D32: Baja | E32: MediaBaja | G32: =AVERAGE(G28,G31) -> 11000 | H32: 0.03 | I32: 11669.9 | N32: =($N$45*INDEX($O$49:$O$52,MATCH(D32,$N$49:$N$52,0))*area.salas.central.telmex/(area.salas.central.telmex+area.sala.coubicacion.externa.CS)) -> 54275.43781 | O32: 0.03 | P32: 57580.81197 | Q32: 150313.5801 | R32: 0.03 | S32: 0 | T32: 159467.6772 | V32: 70 | W32: 30 | X32: 70 | Y32: 68
C33: Media | D33: espacio vacante | E33: Mediaespacio vacante | I33: 0 | P33: 0 | S33: 0 | T33: 0 | Y33: 0
C34: Grande | D34: Alta | E34: GrandeAlta | G34: 25500 | H34: 0.03 | I34: 27052.95 | N34: =($N$45*INDEX($O$49:$O$52,MATCH(D34,$N$49:$N$52,0))*area.salas.central.telmex/(area.salas.central.telmex+area.sala.coubicacion.externa.CS)) -> 175866.9057 | O34: 0.03 | P34: 186577.2003 | Q34: 150313.5801 | R34: 0.03 | S34: 0 | T34: 159467.6772 | V34: 70 | W34: 30 | X34: 70 | Y34: 68
C35: Grande | D35: Media | E35: GrandeMedia | G35: =AVERAGE(G31,G34) -> 19815 | H35: 0.03 | I35: 21021.7335 | N35: =($N$45*INDEX($O$49:$O$52,MATCH(D35,$N$49:$N$52,0))*area.salas.central.telmex/(area.salas.central.telmex+area.sala.coubicacion.externa.CS)) -> 97450.00114 | O35: 0.03 | P35: 103384.7062 | Q35: 150313.5801 | R35: 0.03 | S35: 0 | T35: 159467.6772 | V35: 70 | W35: 30 | X35: 70 | Y35: 68
C36: Grande | D36: Baja | E36: GrandeBaja | G36: =G31 -> 14130 | H36: 0.03 | I36: 14990.517 | N36: =($N$45*INDEX($O$49:$O$52,MATCH(D36,$N$49:$N$52,0))*area.salas.central.telmex/(area.salas.central.telmex+area.sala.coubicacion.externa.CS)) -> 54275.43781 | O36: 0.03 | P36: 57580.81197 | Q36: 150313.5801 | R36: 0.03 | S36: 0 | T36: 159467.6772 | V36: 70 | W36: 30 | X36: 70 | Y36: 68
C37: Grande | D37: espacio vacante | E37: Grandeespacio vacante | I37: 0 | P37: 0 | S37: 0 | T37: 0 | Y37: 0
C38: Muy grande | D38: Alta | E38: Muy grandeAlta | G38: =G34 -> 25500 | H38: 0.03 | I38: 27052.95 | N38: =($N$45*INDEX($O$49:$O$52,MATCH(D38,$N$49:$N$52,0))*area.salas.central.telmex/(area.salas.central.telmex+area.sala.coubicacion.externa.CS)) -> 175866.9057 | O38: 0.03 | P38: 186577.2003 | Q38: 150313.5801 | R38: 0.03 | S38: 0 | T38: 159467.6772 | V38: 70 | W38: 30 | X38: 70 | Y38: 68
C39: Muy grande | D39: Media | E39: Muy grandeMedia | G39: =G34 -> 25500 | H39: 0.03 | I39: 27052.95 | N39: =($N$45*INDEX($O$49:$O$52,MATCH(D39,$N$49:$N$52,0))*area.salas.central.telmex/(area.salas.central.telmex+area.sala.coubicacion.externa.CS)) -> 97450.00114 | O39: 0.03 | P39: 103384.7062 | Q39: 150313.5801 | R39: 0.03 | S39: 0 | T39: 159467.6772 | V39: 70 | W39: 30 | X39: 70 | Y39: 68
C40: Muy grande | D40: Baja | E40: Muy grandeBaja | G40: =G31 -> 14130 | H40: 0.03 | I40: 14990.517 | N40: =($N$45*INDEX($O$49:$O$52,MATCH(D40,$N$49:$N$52,0))*area.salas.central.telmex/(area.salas.central.telmex+area.sala.coubicacion.externa.CS)) -> 54275.43781 | O40: 0.03 | P40: 57580.81197 | Q40: 150313.5801 | R40: 0.03 | S40: 0 | T40: 159467.6772 | V40: 70 | W40: 30 | X40: 70 | Y40: 68
C41: Muy grande | D41: espacio vacante | E41: Muy grandeespacio vacante | I41: 0 | P41: 0 | S41: 0 | T41: 0 | Y41: 0
E42: identificador.central.telmex | G42: Fuente: Telmex y Analysys Mason | I42: capex.unitario.central.telmex | P42: opex.anual.alquiler.central.telmex | Q42: Fuente: Telmex | T42: opex.anual.mantenimiento.central.telmex | W42: Fuente: Telmex | X42: vida.util.central.telmex | Y42: vida.util.restante.central.telmex
N44: OPEX anual alquiler (MXN/año) | Q44: OPEX de mantenimiento (MXN/año)
N45: =2338800.02743153*1000/24000 -> 97450.00114 | Q45: =3607525.92304976*1000/24000 -> 150313.5801
N46: Fuente: Telmex | Q46: Fuente: Telmex
N48: Premium de alquiler por zona
N49: =geotipo -> Alta | O49: 1.804688596 | P49: Basado en Telmex
N50: Media | O50: 1 | P50: Basado en Telmex
N51: Baja | O51: 0.5569567693 | P51: Basado en Telmex
N52: espacio vacante | O52: 1
N53: Nota: Asumiendo que la distribucion de centrales en zonas alta, media y baja es igual
A55: 3 | B55: =INDEX(lista.activos,$A55) -> Sala coubicación externa
C56: Tamaño central | D56: Geotipo | G56: CAPEX unitario - adquisicion + instalacion + obras civiles (MXN/m2) | H56: Tendencia de costos | I56: CAPEX unitario (MXN) - Año activo | N56: OPEX anual alquiler (MXN/año) | O56: Tendencia de costos | P56: OPEX anual alquiler (MXN/año) - Año activo | Q56: OPEX de mantenimiento (MXN/año) | R56: Tendencia de costos | S56: OPEX de mantenimiento (% capex) | T56: OPEX de mantenimiento (MXN/año) - Año activo | V56: Vida util economica | W56: Vida util contable | X56: Vida util activa | Y56: Vida util restante
C57: Pequeña | D57: Alta | E57: =C57&D57 -> PequeñaAlta | G57: =G26 -> 11000 | H57: =H26 -> 0.03 | I57: 11669.9 | N57: =N45*area.sala.coubicacion.externa.CS/(area.salas.central.telmex+area.sala.coubicacion.externa.CS) -> 0 | O57: 0.03 | P57: =N57*(1+O57)^$C$5 -> 0 | Q57: =Q45*area.sala.coubicacion.externa.CS/(area.salas.central.telmex+area.sala.coubicacion.externa.CS) -> 0 | R57: 0.03 | S57: 0 | T57: =Q57*(1+R57)^$C$5 -> 0 | V57: 70 | W57: 30 | X57: =CHOOSE(vida.util.activo.indice,'Costos unitarios'!V57,'Costos unitarios'!W57) -> 70 | Y57: =MAX(0,X57-$C$5) -> 68
C58: Pequeña | D58: Media | E58: =C58&D58 -> PequeñaMedia | G58: =G27 -> 11000 | H58: 0.03 | I58: 11669.9 | N58: =$N$57 -> 0 | O58: 0.03 | P58: =N58*(1+O58)^$C$5 -> 0 | Q58: =$Q$57 -> 0 | R58: 0.03 | S58: 0 | T58: =Q58*(1+R58)^$C$5 -> 0 | V58: =$V$57 -> 70 | W58: =$W$57 -> 30 | X58: =$X$57 -> 70 | Y58: =MAX(0,X58-$C$5) -> 68
C59: Pequeña | D59: Baja | E59: PequeñaBaja | G59: =G28 -> 7870 | H59: 0.03 | I59: 8349.283 | N59: =$N$57 -> 0 | O59: 0.03 | P59: 0 | Q59: =$Q$57 -> 0 | R59: 0.03 | S59: 0 | T59: 0 | V59: =$V$57 -> 70 | W59: =$W$57 -> 30 | X59: =$X$57 -> 70 | Y59: 68
C60: Pequeña | D60: espacio vacante | E60: Pequeñaespacio vacante | P60: 0 | T60: 0 | Y60: 0
C61: Media | D61: Alta | E61: MediaAlta | G61: =G30 -> 14130 | H61: 0.03 | I61: 14990.517 | N61: 0 | O61: 0.03 | P61: 0 | Q61: 0 | R61: 0.03 | S61: 0 | T61: 0 | V61: 70 | W61: 30 | X61: 70 | Y61: 68
C62: Media | D62: Media | E62: MediaMedia | G62: =G31 -> 14130 | H62: 0.03 | I62: 14990.517 | N62: 0 | O62: 0.03 | P62: 0 | Q62: 0 | R62: 0.03 | S62: 0 | T62: 0 | V62: 70 | W62: 30 | X62: 70 | Y62: 68
C63: Media | D63: Baja | E63: MediaBaja | G63: =G32 -> 11000 | H63: 0.03 | I63: 11669.9 | N63: 0 | O63: 0.03 | P63: 0 | Q63: 0 | R63: 0.03 | S63: 0 | T63: 0 | V63: 70 | W63: 30 | X63: 70 | Y63: 68
C64: Media | D64: espacio vacante | E64: Mediaespacio vacante | P64: 0 | T64: 0 | Y64: 0
C65: Grande | D65: Alta | E65: GrandeAlta | G65: =G34 -> 25500 | H65: 0.03 | I65: 27052.95 | N65: 0 | O65: 0.03 | P65: 0 | Q65: 0 | R65: 0.03 | S65: 0 | T65: 0 | V65: 70 | W65: 30 | X65: 70 | Y65: 68
C66: Grande | D66: Media | E66: GrandeMedia | G66: =G35 -> 19815 | H66: 0.03 | I66: 21021.7335 | N66: 0 | O66: 0.03 | P66: 0 | Q66: 0 | R66: 0.03 | S66: 0 | T66: 0 | V66: 70 | W66: 30 | X66: 70 | Y66: 68
C67: Grande | D67: Baja | E67: GrandeBaja | G67: =G36 -> 14130 | H67: 0.03 | I67: 14990.517 | N67: 0 | O67: 0.03 | P67: 0 | Q67: 0 | R67: 0.03 | S67: 0 | T67: 0 | V67: 70 | W67: 30 | X67: 70 | Y67: 68
C68: Grande | D68: espacio vacante | E68: Grandeespacio vacante | P68: 0 | S68: 0 | T68: 0 | Y68: 0
C69: Muy grande | D69: Alta | E69: Muy grandeAlta | G69: =G38 -> 25500 | H69: 0.03 | I69: 27052.95 | N69: 0 | O69: 0.03 | P69: 0 | Q69: 0 | R69: 0.03 | S69: 0 | T69: 0 | V69: 70 | W69: 30 | X69: 70 | Y69: 68
C70: Muy grande | D70: Media | E70: Muy grandeMedia | G70: =G39 -> 25500 | H70: 0.03 | I70: 27052.95 | N70: 0 | O70: 0.03 | P70: 0 | Q70: 0 | R70: 0.03 | S70: 0 | T70: 0 | V70: 70 | W70: 30 | X70: 70 | Y70: 68
C71: Muy grande | D71: Baja | E71: Muy grandeBaja | G71: =G40 -> 14130 | H71: 0.03 | I71: 14990.517 | N71: 0 | O71: 0.03 | P71: 0 | Q71: 0 | R71: 0.03 | S71: 0 | T71: 0 | V71: 70 | W71: 30 | X71: 70 | Y71: 68
C72: Muy grande | D72: espacio vacante | E72: Muy grandeespacio vacante | P72: 0 | S72: 0 | T72: 0 | Y72: 0
E73: identificador.sala.coubicacion.externa | I73: capex.unitario.sala.coubicacion.externa | P73: opex.anual.alquiler.sala.coubicacion.externa | T73: opex.anual.mantenimiento.sala.coubicacion.externa | W73: Fuente: Telmex | X73: vida.util.sala.coubicacion.externa | Y73: vida.util.restante.sala.coubicacion.externa
A75: 4 | B75: =INDEX(lista.activos,$A75) -> Subestación electrica
C76: Corriente | G76: CAPEX unitario (MXM/kW) | H76: Tendencia de costos | I76: CAPEX unitario (MXN) - Año activo | N76: OPEX de mantenimiento (MXN/año/kW) | O76: Tendencia de costos | P76: OPEX de mantenimiento (% capex) | Q76: OPEX de mantenimiento (MXN/año/kW) - Año activo | V76: Vida util economica | W76: Vida util contable | X76: Vida util activa | Y76: Vida util restante
C77: AC 127V | E77: =L!C90 -> AC_127V | G77: 12060 | H77: 0.02 | I77: =G77*(1+H77)^$C$5 -> 12547.224 | N77: =G77*P77 -> 553.554 | O77: 0.02 | P77: 0.0459 | Q77: =N77*(1+O77)^$C$5 -> 575.9175816 | V77: 27 | W77: 12 | X77: =CHOOSE(vida.util.activo.indice,'Costos unitarios'!V77,'Costos unitarios'!W77) -> 27 | Y77: =MAX(0,X77-$C$5) -> 25
C78: DC 48V | E78: =L!C89 -> DC_48V | G78: =G77 -> 12060 | H78: 0.02 | I78: =G78*(1+H78)^$C$5 -> 12547.224 | N78: =G78*P78 -> 553.554 | O78: 0.02 | P78: =P77 -> 0.0459 | Q78: =N78*(1+O78)^$C$5 -> 575.9175816 | V78: =V77 -> 27 | W78: 12 | X78: =CHOOSE(vida.util.activo.indice,'Costos unitarios'!V78,'Costos unitarios'!W78) -> 27 | Y78: =MAX(0,X78-$C$5) -> 25
E79: identificador.subestacion.electrica | I79: capex.unitario.subestacion.electrica | Q79: opex.anual.mantenimiento.subestacion.electrica | X79: vida.util.subestacion.electrica | Y79: vida.util.restante.subestacion.electrica
A82: 5 | B82: =INDEX(lista.activos,$A82) -> Fuente de energia de respaldo (planta de emergencia)
C83: Tipo de fuente de energia de respaldo | G83: CAPEX unitario (kW) | H83: Tendencia de costos | I83: CAPEX unitario (MXN) - Año activo | N83: OPEX de mantenimiento (MXN/kW/año) | O83: Tendencia de costos | P83: OPEX de mantenimiento (% capex) | Q83: OPEX de mantenimiento (MXN/kW/año) - Año activo | V83: Vida util economica | W83: Vida util contable | X83: Vida util activa | Y83: Vida util restante
C84: Generador + baterias | E84: =C84 -> Generador + baterias | G84: 9730 | H84: 0.02 | I84: =G84*(1+H84)^$C$5 -> 10123.092 | N84: =G84*P84 -> 446.607 | O84: 0.02 | P84: 0.0459 | Q84: =N84*(1+O84)^$C$5 -> 464.6499228 | V84: 12 | W84: 12 | X84: =CHOOSE(vida.util.activo.indice,'Costos unitarios'!V84,'Costos unitarios'!W84) -> 12 | Y84: =MAX(0,X84-$C$5) -> 10
E85: identificador.fuente.energia.respaldo | G85: Fuente: Telmex | I85: capex.unitario.fuente.energia.respaldo | Q85: opex.unitario.fuente.energia.respaldo | W85: Fuente: Telmex | X85: vida.util.fuente.energia.respaldo | Y85: vida.util.restante.fuente.energia.respaldo
A87: 6 | B87: =INDEX(lista.activos,$A87) -> Aire acondicionado
G88: CAPEX unitario (MXN/ton) | H88: Tendencia de costos | I88: CAPEX unitario (MXN/ton) - Año activo | N88: OPEX de mantenimiento (MXN/año) | O88: Tendencia de costos | P88: OPEX de mantenimiento (% capex) | Q88: OPEX de mantenimiento (MXN/año) - Año activo | V88: Vida util economica | W88: Vida util contable | X88: Vida util activa | Y88: Vida util restante
C89: Valores por ton | G89: 20570 | H89: 0.02 | I89: =G89*(1+H89)^$C$5 -> 21401.028 | N89: =G89*P89 -> 944.163 | O89: 0.03 | P89: 0.0459 | Q89: =N89*(1+O89)^$C$5 -> 1001.662527 | V89: 20 | W89: 20 | X89: =CHOOSE(vida.util.activo.indice,'Costos unitarios'!V89,'Costos unitarios'!W89) -> 20 | Y89: =MAX(0,X89-$C$5) -> 18
G90: Fuente: Telmex | I90: capex.unitario.aire.acondicionado | P90: Fuente: Telmex | Q90: opex.anual.mantenimiento.aire.acondicionado | W90: Fuente: Telmex | X90: vida.util.aire.acondicionado | Y90: vida.util.restante.aire.acondicionado
O91: OPEX de energia (MXN/kWh) | P91: Tendencia de costos | R91: OPEX de energia (MXN/kWh) - Año activo
C92: Precio de energia por kWh | O92: 1.35 | P92: 0.05 | R92: =(O92*(1+P92)^$C$5) -> 1.488375
R93: opex.energia.kWh
A94: 7 | B94: =INDEX(lista.activos,$A94) -> Racks
G96: CAPEX unitario (MXN/#) | H96: Tendencia de costos | N96: OPEX de mantenimiento (MXN/año) | O96: Tendencia de costos | P96: OPEX de mantenimiento (% capex) | Q96: OPEX de mantenimiento (MXN/año) - Año activo | V96: Vida util economica | W96: Vida util contable | X96: Vida util activa | Y96: Vida util restante
C97: Gabinete | G97: 94525 | H97: 0.02 | I97: =G97*(1+H97)^$C$5 -> 98343.81 | N97: =G97*P97 -> 7372.95 | O97: 0.02 | P97: 0.078 | Q97: =N97*(1+O97)^$C$5*Q101 -> 7670.81718 | V97: 7 | W97: 7 | X97: =CHOOSE(vida.util.activo.indice,'Costos unitarios'!V97,'Costos unitarios'!W97) -> 7 | Y97: =MAX(0,X97-$C$5) -> 5
G98: Fuente: Telmex | I98: capex.unitario.racks | P98: Fuente: Telmex | Q98: opex.anual.mantenimiento.racks | W98: Fuente: Telmex | X98: vida.util.racks | Y98: vida.util.restante.racks
Q100: Factor de utilizacion
Q101: 1

Sheet Costeo
A1: Costeo
I3: CAPEX | R3: OPEX | X3: Costos totales incluindo overheads
J5: Inputs
D6: Elemento | E6: Unidad | F6: Cantidad | G6: Nombre | I6: Unidad capex unitario | J6: Obras civiles | K6: Unidad capex unitario | L6: Adquisicion | M6: Capex total | N6: Vida útil | O6: Vida útil restante | P6: Anualidad Capex | R6: Unidad opex unitario 1 | S6: Alquiler | T6: Unidad opex unitario 2 | U6: Mantenimiento | V6: Opex total | X6: Capex total | Y6: Opex total | Z6: Gasto anual | AB6: Notas
A7: Unidad --> | J7: MXN | L7: MXN | M7: MXN | N7: años | O7: años | P7: MXN/año | S7: MXN | U7: MXN | V7: MXN/año | X7: MXN/año | Y7: MXN/año | Z7: MXN/año
A9: Uso de Sitios, Predios y Espacios Físicos
A10: 1 | B10: =INDEX(lista.activos,$A10) -> Predio
D12: =id.predio.activo -> Tercero en arrendamientoMedia | E12: m2 | F12: =area.total.predio -> 114.3506469 | I12: MXN/m2 | J12: =INDEX(capex.unitario.obras.adecuacion.predio,MATCH(D12,identificador.predio,0)) -> 637.245 | K12: MXN/m2 | L12: =INDEX(capex.unitario.acquisicion.predio,MATCH(D12,identificador.predio,0)) -> 0 | M12: =(F12*J12)+(F12*L12) -> 72869.37796 | N12: =INDEX(vida.util.predio,MATCH(D12,identificador.predio,0)) -> 80 | O12: =INDEX(vida.util.restante.predio,MATCH(D12,identificador.predio,0)) -> 78 | P12: =(wacc/(1-(1/(1+wacc)^N12)))*M12 -> 7225.121254 | R12: MXN | S12: =INDEX(opex.anual.alquiler.predio,MATCH(D12,identificador.predio,0)) -> 0 | T12: MXN/m2 | U12: =INDEX(opex.anual.mantenimiento.predio,MATCH(D12,identificador.predio,0)) -> 0 | V12: =S12+(U12*F12) -> 0 | X12: =P12*(1+markup.overhead.capex) -> 7803.130954 | Y12: =V12*(1+markup.overhead.opex) -> 0 | Z12: =X12+Y12 -> 7803.130954
X13: capex.predio | Y13: opex.predio | Z13: gasto.anual.predio
A14: 2 | B14: =INDEX(lista.activos,$A14) -> Central del AEP | AB14: Output para el modelo móvil
D16: =id.central.telmex.activo -> MediaMedia | E16: m2 | F16: =area.salas.central.telmex -> 152.4675292 | I16: MXN/m2 | J16: =INDEX(capex.unitario.central.telmex,MATCH(D16,identificador.central.telmex,0)) -> 14990.517 | K16: 0 | L16: 0 | M16: =(J16*F16) -> 2285567.088 | N16: =INDEX(vida.util.central.telmex,MATCH(D16,identificador.central.telmex,0)) -> 70 | O16: =INDEX(vida.util.restante.central.telmex,MATCH(D16,identificador.central.telmex,0)) -> 68 | P16: =(wacc/(1-(1/(1+wacc)^N16)))*M16 -> 226803.819 | R16: MXN | S16: =INDEX(opex.anual.alquiler.central.telmex,MATCH(D16,identificador.central.telmex,0)) -> 103384.7062 | T16: MXN | U16: =INDEX(opex.anual.mantenimiento.central.telmex,MATCH(D16,identificador.central.telmex,0)) -> 159467.6772 | V16: =S16+U16 -> 262852.3834 | X16: =P16*(1+markup.overhead.capex) -> 244948.1245 | Y16: =V16*(1+markup.overhead.opex) -> 283880.574 | Z16: =X16+Y16 -> 528828.6985 | AB16: =capex.central.telmex/F16 -> 1606.559284 | AC16: =opex.central.telmex/F16 -> 1861.908405
X17: capex.central.telmex | Y17: opex.central.telmex | Z17: gasto.anual.central.telmex | AB17: capex.central.telmex.para.movil | AC17: opex.central.telmex.para.movil
A18: 3 | B18: =INDEX(lista.activos,$A18) -> Sala coubicación externa
D20: =id.central.telmex.activo -> MediaMedia | E20: m2 | F20: =area.sala.coubicacion.externa.CS -> 0 | I20: MXN/m2 | J20: =INDEX(capex.unitario.sala.coubicacion.externa,MATCH(D20,identificador.sala.coubicacion.externa,0)) -> 14990.517 | K20: 0 | L20: 0 | M20: =(J20*F20) -> 0 | N20: =INDEX(vida.util.sala.coubicacion.externa,MATCH(D20,identificador.central.telmex,0)) -> 70 | O20: =INDEX(vida.util.restante.sala.coubicacion.externa,MATCH(D20,identificador.central.telmex,0)) -> 68 | P20: =(wacc/(1-(1/(1+wacc)^N20)))*M20 -> 0 | R20: MXN | S20: =INDEX(opex.anual.alquiler.sala.coubicacion.externa,MATCH(D20,identificador.sala.coubicacion.externa,0)) -> 0 | T20: MXN | U20: =INDEX(opex.anual.mantenimiento.sala.coubicacion.externa,MATCH(D20,identificador.sala.coubicacion.externa,0)) -> 0 | V20: =S20+U20 -> 0 | X20: =P20*(1+markup.overhead.capex) -> 0 | Y20: =V20*(1+markup.overhead.opex) -> 0 | Z20: =X20+Y20 -> 0
X21: capex.sala.coubicacion.externa | Y21: opex.sala.coubicacion.externa | Z21: gasto.anual.sala.coubicacion.externa
A22: 4 | B22: =INDEX(lista.activos,$A22) -> Subestación electrica
D24: =corriente.energia.activa -> AC_127V | E24: kW | F24: =consumo.equipos.subestacion.electrica -> 86.998832 | I24: MXN/kW | J24: =INDEX(capex.unitario.subestacion.electrica,MATCH(corriente.energia.activa,identificador.subestacion.electrica,0)) -> 12547.224 | K24: 0 | L24: 0 | M24: =(J24*F24) -> 1091593.833 | N24: =INDEX(vida.util.subestacion.electrica,MATCH(corriente.energia.activa,identificador.subestacion.electrica,0)) -> 27 | O24: =INDEX(vida.util.restante.subestacion.electrica,MATCH(corriente.energia.activa,identificador.subestacion.electrica,0)) -> 25 | P24: =(wacc/(1-(1/(1+wacc)^N24)))*M24 -> 117326.3106 | R24: 0 | S24: 0 | T24: MXN/kW | U24: =INDEX(opex.anual.mantenimiento.subestacion.electrica,MATCH(corriente.energia.activa,identificador.subestacion.electrica,0)) -> 575.9175816 | V24: =(S24*F24)+(U24*F24) -> 50104.15693 | X24: =P24*(1+markup.overhead.capex) -> 126712.4155 | Y24: =V24*(1+markup.overhead.opex) -> 54112.48948 | Z24: =X24+Y24 -> 180824.905
X25: capex.subestacion.electrica | Y25: opex.subestacion.electrica | Z25: gasto.anual.subestacion.electrica
A26: 5 | B26: =INDEX(lista.activos,$A26) -> Fuente de energia de respaldo (planta de emergencia)
D28: =opcion.fuente.energia.respaldo.activa -> Generador Diesel + Baterias | E28: kW | F28: =potencia.minima.fuente.energia.respaldo -> 69.5990656 | I28: MXN/kW | J28: =capex.unitario.fuente.energia.respaldo -> 10123.092 | K28: 0 | L28: 0 | M28: =(J28*F28) -> 704557.7442 | N28: =vida.util.fuente.energia.respaldo -> 12 | O28: =vida.util.restante.fuente.energia.respaldo -> 10 | P28: =(wacc/(1-(1/(1+wacc)^N28)))*M28 -> 102947.7894 | R28: 0 | S28: 0 | T28: MXN/kW | U28: =opex.unitario.fuente.energia.respaldo -> 464.6499228 | V28: =(S28*F28)+(U28*F28) -> 32339.20046 | X28: =P28*(1+markup.overhead.capex) -> 111183.6126 | Y28: =V28*(1+markup.overhead.opex) -> 34926.33649 | Z28: =X28+Y28 -> 146109.9491
X29: capex.fuente.energia.respaldo | Y29: opex.fuente.energia.respaldo | Z29: gasto.anual.fuente.energia.respaldo
A30: 6 | B30: =INDEX(lista.activos,$A30) -> Aire acondicionado | S30: Energia
D32: =Dimensionado!D95 -> Capacidad utilizada | E32: tons | F32: =capacidad.utilizada.aire.acondicionado -> 15.24675292 | I32: MXN/tons | J32: =capex.unitario.aire.acondicionado -> 21401.028 | K32: 0 | L32: 0 | M32: =J32*F32 -> 326296.1861 | N32: =vida.util.aire.acondicionado -> 20 | O32: =vida.util.restante.aire.acondicionado -> 18 | P32: =(wacc/(1-(1/(1+wacc)^N32)))*M32 -> 38091.45692 | R32: 0 | S32: =F32*kW.por.ton*horas.por.dia*dias.por.mes*meses.por.año*opex.energia.kWh -> 689565.9998 | T32: MXN | U32: =opex.anual.mantenimiento.aire.acondicionado -> 1001.662527 | V32: =IF(F32>0,U32,0) -> 1001.662527 | X32: =P32*(1+markup.overhead.capex) -> 41138.77347 | Y32: =V32*(1+markup.overhead.opex) -> 1081.795529 | Z32: =X32+Y32 -> 42220.569
X33: capex.aire.acondicionado | Y33: opex.aire.acondicionado | Z33: gasto.anual.aire.acondicionado
A34: 7 | B34: =INDEX(lista.activos,$A34) -> Racks
D36: =Dimensionado!D104 -> Numero de racks | E36: unidades | F36: =unidades.racks.activo -> 0 | I36: MXN/unidade | J36: =capex.unitario.racks -> 98343.81 | K36: 0 | L36: 0 | M36: =J36*F36 -> 0 | N36: =vida.util.racks -> 7 | O36: =vida.util.restante.racks -> 5 | P36: =(wacc/(1-(1/(1+wacc)^N36)))*M36 -> 0 | T36: MXN/unidade | U36: =opex.anual.mantenimiento.racks -> 7670.81718 | V36: =U36*F36 -> 0 | X36: =P36*(1+markup.overhead.capex) -> 0 | Y36: =V36*(1+markup.overhead.opex) -> 0 | Z36: =X36+Y36 -> 0
X37: capex.racks | Y37: opex.racks | Z37: gasto.anual.racks

Sheet Precio
A1: Precio
A5: Matrices de mapeo de elementos de red a servicios
C6: AEP | F6: Servicios --> | H6: =TRANSPOSE(lista.servicios) -> Coubicación | I6: Subestación electrica | J6: Fuente de energia de respaldo | K6: Aire acondicionado | M6: Nota: incluimos autoaprovisionamiento del AEP
C7: Elemento
B8: 1 | C8: =INDEX(lista.activos,B8) -> Predio | H8: 1 | I8: 0 | J8: 0 | K8: 0
B9: =B8+1 -> 2 | C9: Central del AEP | H9: =((SUMPRODUCT(H$17:H$26,$H$116:$H$125)/SUM($H$116:$H$125)))*((1-$K9)/1) -> 0.6128287316 | I9: =(SUMPRODUCT(I$17:I$26,$H$116:$H$125)/SUM($H$116:$H$125))*((1-$K9)/1) -> 0.2710376788 | J9: =(SUMPRODUCT(J$17:J$26,$H$116:$H$125)/SUM($H$116:$H$125))*((1-$K9)/1) -> 0.0661335896 | K9: 0.05 | M9: Nota: ver abajo asignación de salas a servicios
B10: =B9+1 -> 3 | C10: Sala coubicación externa | H10: 1 | I10: 0 | J10: 0 | K10: 0
B11: 4 | C11: Subestación electrica | H11: 0 | I11: 1 | J11: 0 | K11: 0
B12: 5 | C12: Fuente de energia de respaldo (planta de emergencia) | H12: 0 | I12: 0 | J12: 1 | K12: 0
B13: 6 | C13: Aire acondicionado | H13: 0 | I13: 0 | J13: 0 | K13: 1
B14: 7 | C14: =INDEX(lista.activos,B14) -> Racks | H14: 1 | I14: 0 | J14: 0 | K14: 0
C16: Sub-elemento de la Central del AEP
B17: 1 | C17: =INDEX(lista.componentes.central.telmex,B17) -> Sala MDF/ODF AEP | H17: 1 | I17: 0 | J17: 0 | K17: 0
B18: =B17+1 -> 2 | C18: Sala coubicación CS | H18: 1 | I18: 0 | J18: 0 | K18: 0
B19: =B18+1 -> 3 | C19: Sala de control | H19: 1 | I19: 0 | J19: 0 | K19: 0
B20: =B19+1 -> 4 | C20: Sala de switching del AEP | H20: 1 | I20: 0 | J20: 0 | K20: 0
B21: =B20+1 -> 5 | C21: Sala equipos de transmisión del AEP | H21: 1 | I21: 0 | J21: 0 | K21: 0
B22: 6 | C22: Sala subestacion electrica | H22: 0 | I22: 1 | J22: 0 | K22: 0
B23: 7 | C23: Sala planta de emergencia | H23: 0 | I23: 0 | J23: 1 | K23: 0
B24: 8 | C24: Sala baterias | H24: 0 | I24: 0 | J24: 1 | K24: 0
B25: 9 | C25: Espacio de overheads | H25: 1 | I25: 0 | J25: 0 | K25: 0
B26: 10 | C26: espacio vacante
C28: CSs | F28: Servicios --> | H28: =TRANSPOSE(lista.servicios) -> Coubicación | I28: Subestación electrica | J28: Fuente de energia de respaldo | K28: Aire acondicionado
C29: Elemento
B30: 1 | C30: =INDEX(lista.activos,B30) -> Predio | H30: 1 | I30: 0 | J30: 0 | K30: 0
B31: =B30+1 -> 2 | C31: Central del AEP | H31: =(SUMPRODUCT(H$39:H$48,$H$116:$H$125)/SUM($H$116:$H$125))*((1-$K31)/1) -> 0.6128287316 | I31: =(SUMPRODUCT(I$39:I$48,$H$116:$H$125)/SUM($H$116:$H$125))*((1-$K31)/1) -> 0.2710376788 | J31: =(SUMPRODUCT(J$39:J$48,$H$116:$H$125)/SUM($H$116:$H$125))*((1-$K31)/1) -> 0.0661335896 | K31: =aire.acondicionado.espacio.maniobra -> 0.05
B32: =B31+1 -> 3 | C32: Sala coubicación externa | H32: 1 | I32: 0 | J32: 0 | K32: 0
B33: 4 | C33: Subestación electrica | H33: 0 | I33: 1 | J33: 0 | K33: 0
B34: 5 | C34: Fuente de energia de respaldo (planta de emergencia) | H34: 0 | I34: 0 | J34: 1 | K34: 0
B35: 6 | C35: Aire acondicionado | H35: 0 | I35: 0 | J35: 0 | K35: 1
B36: 7 | C36: Racks | H36: 1 | I36: 0 | J36: 0 | K36: 0
H37: asignacion.coubicacion.CSs | I37: asignacion.subestacion.electrica.CSs | J37: asignacion.fuente.energia.respaldo.CSs | K37: asignacion.aireacondicionado.CSs
C38: Sub-elemento de la Central del AEP
B39: 1 | C39: =INDEX(lista.componentes.central.telmex,B39) -> Sala MDF/ODF AEP | H39: 1 | I39: 0 | J39: 0 | K39: 0
B40: =B39+1 -> 2 | C40: Sala coubicación CS | H40: 1 | I40: 0 | J40: 0 | K40: 0
B41: =B40+1 -> 3 | C41: Sala de control | H41: 1 | I41: 0 | J41: 0 | K41: 0
B42: =B41+1 -> 4 | C42: Sala de switching del AEP | H42: 1 | I42: 0 | J42: 0 | K42: 0
B43: =B42+1 -> 5 | C43: Sala equipos de transmisión del AEP | H43: 1 | I43: 0 | J43: 0 | K43: 0
B44: 6 | C44: Sala subestacion electrica | H44: 0 | I44: 1 | J44: 0 | K44: 0
B45: 7 | C45: Sala planta de emergencia | H45: =IF(solicitacion.fuente.energia.respaldo.activo.CS=TRUE,0,1) -> 0 | I45: 0 | J45: =IF(solicitacion.fuente.energia.respaldo.activo.CS=TRUE,1,0) -> 1 | K45: 0
B46: 8 | C46: Sala baterias | H46: =IF(solicitacion.fuente.energia.respaldo.activo.CS=TRUE,0,1) -> 0 | I46: 0 | J46: =IF(solicitacion.fuente.energia.respaldo.activo.CS=TRUE,1,0) -> 1 | K46: 0
B47: 9 | C47: Espacio de overheads | H47: 1 | I47: 0 | J47: 0 | K47: 0
B48: 10 | C48: espacio vacante
A50: Inclusion de gastos
B51: Gastos incluidos
H52: Capex | I52: Opex | J52: Gasto anual | K52: Check | L52: Inclusion AEP | N52: Capex | O52: Opex | P52: Gasto anual incluido | R52: Check
C53: Elemento | E53: MXN/año | H53: =SUM(H54:H59) -> 531786.057 | I53: =SUM(I54:I59) -> 374001.1955 | J53: 905787.2525 | K53: =ROUND(J53, 2)=ROUND(SUM(H53:I53), 2) -> TRUE | N53: =SUM(N54:N60) -> 531786.057 | O53: =SUM(O54:O60) -> 374001.1955 | P53: 905787.2525 | R53: =ROUND(P53, 2)=ROUND(SUM(N53:O53), 2) -> TRUE
B54: 1 | C54: =INDEX(lista.activos,B54) -> Predio | E54: =$E$53 -> MXN/año | H54: =capex.predio -> 7803.130954 | I54: =opex.predio -> 0 | J54: =SUM(H54:I54) -> 7803.130954 | K54: =J54=gasto.anual.predio -> TRUE | L54: TRUE | N54: =H54*$L54 -> 7803.130954 | O54: 0 | P54: 7803.130954 | R54: =P54=J54*L54 -> TRUE
B55: =B54+1 -> 2 | C55: Central del AEP | E55: =$E$53 -> MXN/año | H55: =capex.central.telmex -> 244948.1245 | I55: =opex.central.telmex -> 283880.574 | J55: =SUM(H55:I55) -> 528828.6985 | K55: =J55=gasto.anual.central.telmex -> TRUE | L55: TRUE | N55: 244948.1245 | O55: 283880.574 | P55: 528828.6985 | R55: TRUE
B56: =B55+1 -> 3 | C56: Sala coubicación externa | E56: MXN/año | H56: =capex.sala.coubicacion.externa -> 0 | I56: =opex.sala.coubicacion.externa -> 0 | J56: 0 | K56: =J56=gasto.anual.sala.coubicacion.externa -> TRUE | L56: TRUE | N56: 0 | O56: 0 | P56: 0 | R56: TRUE
B57: 4 | C57: Subestación electrica | E57: MXN/año | H57: =capex.subestacion.electrica -> 126712.4155 | I57: =opex.subestacion.electrica -> 54112.48948 | J57: 180824.905 | K57: =J57=gasto.anual.subestacion.electrica -> TRUE | L57: TRUE | N57: 126712.4155 | O57: 54112.48948 | P57: 180824.905 | R57: TRUE
B58: 5 | C58: Fuente de energia de respaldo (planta de emergencia) | E58: MXN/año | H58: =capex.fuente.energia.respaldo -> 111183.6126 | I58: =opex.fuente.energia.respaldo -> 34926.33649 | J58: 146109.9491 | K58: =J58=gasto.anual.fuente.energia.respaldo -> TRUE | L58: TRUE | N58: 111183.6126 | O58: 34926.33649 | P58: 146109.9491 | R58: TRUE
B59: 6 | C59: Aire acondicionado | E59: MXN/año | H59: =capex.aire.acondicionado -> 41138.77347 | I59: =opex.aire.acondicionado -> 1081.795529 | J59: 42220.569 | K59: =J59=gasto.anual.aire.acondicionado -> TRUE | L59: TRUE | N59: 41138.77347 | O59: 1081.795529 | P59: 42220.569 | R59: TRUE
B60: 7 | C60: =INDEX(lista.activos,B60) -> Racks | E60: MXN/año | H60: =capex.racks -> 0 | I60: =opex.racks -> 0 | J60: 0 | K60: =J60=gasto.anual.racks -> TRUE | L60: TRUE | N60: 0 | O60: 0 | P60: 0 | R60: TRUE
C62: Servicios | H62: =SUM(H63:H66) -> 531786.057 | I62: =SUM(I63:I66) -> 374001.1955 | J62: =SUM(J63:J66) -> 905787.2525
B63: 1 | C63: =INDEX(lista.servicios,B63) -> Coubicación | E63: =$E$53 -> MXN/año | H63: =SUMPRODUCT(N54:N60,$H8:$H14) -> 157914.3794 | I63: =SUMPRODUCT(O54:O60,$H8:$H14) -> 173970.1721 | J63: =SUMPRODUCT(P54:P60,$H8:$H14) -> 331884.5515
B64: =B63+1 -> 2 | C64: =INDEX(lista.servicios,B64) -> Subestación electrica | E64: MXN/año | H64: =SUMPRODUCT(N54:N60,$I8:$I14) -> 193102.5866 | I64: =SUMPRODUCT(O54:O60,$I8:$I14) -> 131054.8213 | J64: =SUMPRODUCT(P54:P59,$I8:$I13) -> 324157.4079
B65: =B64+1 -> 3 | C65: =INDEX(lista.servicios,B65) -> Fuente de energia de respaldo | E65: MXN/año | H65: =SUMPRODUCT(N54:N60,$J8:$J14) -> 127382.9113 | I65: =SUMPRODUCT(O54:O60,$J8:$J14) -> 53700.37787 | J65: =SUMPRODUCT(P54:P59,$J8:$J13) -> 181083.2892
B66: 4 | C66: =INDEX(lista.servicios,B66) -> Aire acondicionado | E66: MXN/año | H66: =SUMPRODUCT(N54:N60,$K8:$K14) -> 53386.1797 | I66: =SUMPRODUCT(O54:O60,$K8:$K14) -> 15275.82423 | J66: =SUMPRODUCT(P54:P60,$K8:$K14) -> 68662.00393
H67: =H62=N53 -> TRUE | I67: =I62=O53 -> TRUE | J67: =J62=P53 -> TRUE
A69: Asignacion de gastos
B70: Demanda (1 = Si, 0 = No)
C72: Elemento | D72: Sub-elemento | I72: AEP | J72: CSs | L72: Nota:
B73: 1 | C73: =INDEX(lista.activos,B73) -> Predio | E73: (1 = Sí, 0 = No) | I73: 1 | J73: 1 | L73: Si un operador esta activo, ocupara estacio en piso
C74: 1 | D74: =INDEX(lista.componentes.predio,C74) -> Area caseta central | E74: (1 = Sí, 0 = No) | I74: 1 | J74: 1 | L74: Si un operador esta activo, se asignara costos en la caseta central, ya que hay servicios que son compartidos
C75: =C74+1 -> 2 | D75: =INDEX(lista.componentes.predio,C75) -> Area sala coubicacion externa | E75: (1 = Sí, 0 = No) | I75: 0 | J75: =IF(numero.CS.activo.CE>0,1,0) -> 0
C76: =C75+1 -> 3 | D76: =INDEX(lista.componentes.predio,C76) -> Area libre | E76: (1 = Sí, 0 = No) | I76: 1 | J76: 1
B77: 2 | C77: =INDEX(lista.activos,B77) -> Central del AEP | E77: (1 = Sí, 0 = No) | I77: 1 | J77: 1
B78: 3 | C78: Sala coubicación externa | E78: (1 = Sí, 0 = No) | I78: 0 | J78: =IF(numero.CS.activo.CE>0,1,0) -> 0
B79: 4 | C79: Subestación electrica | E79: (1 = Sí, 0 = No) | I79: 1 | J79: 1
B80: 5 | C80: Fuente de energia de respaldo (planta de emergencia) | E80: (1 = Sí, 0 = No) | I80: 1 | J80: =IF(solicitacion.fuente.energia.respaldo.activo.CS=TRUE,1,0) -> 1
B81: 6 | C81: Aire acondicionado | E81: (1 = Sí, 0 = No) | I81: 1 | J81: =IF(solicitacion.aire.acondicionado.activo=TRUE,1,0) -> 1
B82: 7 | C82: =INDEX(lista.activos,B82) -> Racks | E82: (1 = Sí, 0 = No) | I82: =solicitacion.racks.activo*1 -> 0 | J82: =IF(solicitacion.racks.activo=TRUE,1,0) -> 0
B84: Drivers para asignacion de costos (unidades)
H85: Cantidad driver por operador
C86: Elemento | D86: Sub-elemento | E86: Driver | F86: Unidades | H86: Total | I86: AEP | J86: CSs
B87: 1 | C87: =INDEX(lista.activos,B87) -> Predio | L87: Nota:
C88: 1 | D88: =INDEX(lista.componentes.predio,C88) -> Area caseta central | E88: Espacio funcional utilizado por operador en la central | F88: m2 | H88: =H115 -> 152.4675292 | I88: =I115 -> 107.8436449 | J88: =J115 -> 44.62388422 | L88: Espacio funcional utilizado = espacio o sala dedicado/a a un operador, más cuota de espacio para usos comunes (sala subestación eléctrica, sala planta de emergencia, sala baterías, sala aire acondicionado, sala de control, espacios overhead)
C89: =C88+1 -> 2 | D89: =INDEX(lista.componentes.predio,C89) -> Area sala coubicacion externa | E89: Espacio para coubicación en CE por CS en CE | F89: m2 | H89: =SUM(I89:J89) -> 0 | I89: 0 | J89: =area.sala.coubicacion.externa.CS -> 0
C90: =C89+1 -> 3 | D90: =INDEX(lista.componentes.predio,C90) -> Area libre | E90: Espacio funcional utilizado por operador | F90: m2 | H90: =(H88*(1+markup.area.exterior.central.telmex)/numero.plantas.central.telmex.activo+H89*(1+markup.sala.CS)) -> 76.23376458 | I90: =(I88*(1+markup.area.exterior.central.telmex)/numero.plantas.central.telmex.activo)+IF(area.libre.CS=FALSE,(SUM(K88:M89)*(1+markup.area.exterior.central.telmex)/numero.plantas.central.telmex.activo),0) -> 53.92182247 | J90: =((J88*(1+markup.area.exterior.central.telmex)/numero.plantas.central.telmex.activo)+(J89*(1+markup.sala.CS)))*area.libre.CS -> 22.31194211
B91: 2 | C91: =INDEX(lista.activos,B91) -> Central del AEP
C92: 1 | D92: =INDEX(lista.componentes.central.telmex,C92) -> Sala MDF/ODF AEP | E92: Espacio dedicado al AEP y entonces asignado 100% al AEP | F92: m2 | H92: =SUM(I92:J92) -> 14.448 | I92: =area.sala.MDF.AEP -> 14.448 | J92: 0
C93: =C92+1 -> 2 | D93: Sala coubicación CS | E93: Espacio dedicado a los CSs y asignado a cada CS según su demanda de espacio en CI | F93: m2 | H93: 22.96 | I93: 0 | J93: =area.sala.coubicacion.CS -> 22.96
C94: =C93+1 -> 3 | D94: Sala de control | E94: Pro-rata según los espacios dedicados a cada operador | F94: m2 | H94: 78.448 | I94: =espacio.exclusivo.AEP -> 55.488 | J94: =espacio.coubicacion.activo.porCS*numero.CS.activo*sala.control.CS.activo -> 22.96
C95: =C94+1 -> 4 | D95: Sala de switching del AEP | E95: Espacio dedicado al AEP y entonces asignado 100% al AEP | F95: m2 | H95: 55.488 | I95: =espacio.exclusivo.AEP -> 55.488 | J95: =espacio.coubicacion.activo.porCS*numero.CS.activo*sala.switching.CS.activo -> 0
C96: =C95+1 -> 5 | D96: Sala equipos de transmisión del AEP | E96: Espacio dedicado al AEP y entonces asignado 100% al AEP | F96: m2 | H96: 55.488 | I96: =espacio.exclusivo.AEP -> 55.488 | J96: =espacio.coubicacion.activo.porCS*numero.CS.activo*sala.equipos.transmision.CS.activo -> 0
C97: 6 | D97: Sala subestacion electrica | E97: Energía requerida por cada operador | F97: kW | H97: 86.998832 | I97: =consumo.equipos.AEP -> 61.536192 | J97: =consumo.equipos.porCS*numero.CS.activo*sala.subestacion.electrica.CS.activo -> 25.46264
C98: 7 | D98: Sala planta de emergencia | E98: Energía requerida por cada operador | F98: kW | H98: 86.998832 | I98: =consumo.equipos.AEP*fuente.energia.respaldo.activo.AEP -> 61.536192 | J98: =consumo.equipos.porCS*numero.CS.activo*solicitacion.fuente.energia.respaldo.activo.CS*sala.planta.emergencia.CS.activo -> 25.46264
C99: 8 | D99: Sala baterias | E99: Energía requerida por cada operador | F99: kW | H99: 86.998832 | I99: =consumo.equipos.AEP*fuente.energia.respaldo.activo.AEP -> 61.536192 | J99: =consumo.equipos.porCS*numero.CS.activo*solicitacion.fuente.energia.respaldo.activo.CS*sala.baterias.CS.activo -> 25.46264
C100: 9 | D100: Espacio de overheads | E100: Espacio funcional (excl. overhead) utilizado por operador en la central | F100: m2 | H100: =SUM(H116:J123) -> 285.1226741 | I100: =SUM(I116:I123) -> 100.8367769 | J100: =SUM(J116:J123)*espacio.incremental.activo -> 41.7245602
C101: 10 | D101: espacio vacante | F101: m2
B102: 3 | C102: Sala coubicación externa | E102: Espacio dedicado a los CSs y asignado a cada CS según su demanda de espacio en CE | F102: m2 | H102: =SUM(I102:J102) -> 0 | I102: 0 | J102: =area.sala.coubicacion.externa.CS -> 0
B103: 4 | C103: Subestación electrica | E103: Energía requerida por cada operador | F103: kW | H103: =SUM(I103:J103) -> 86.998832 | I103: =consumo.equipos.AEP -> 61.536192 | J103: =consumo.equipos.porCS*numero.CS.activo -> 25.46264
B104: 5 | C104: Fuente de energia de respaldo (planta de emergencia) | E104: Energía requerida por cada operador | F104: kW | H104: =SUM(I104:J104) -> 86.998832 | I104: =consumo.equipos.AEP*fuente.energia.respaldo.activo.AEP -> 61.536192 | J104: =consumo.equipos.porCS*numero.CS.activo*solicitacion.fuente.energia.respaldo.activo.CS -> 25.46264
B105: 6 | C105: Aire acondicionado | E105: Espacio ocupado de las salas de la central (excl. aire acondicionado) | F105: m2 | H105: =H88 -> 152.4675292 | I105: =I88 -> 107.8436449 | J105: =J88 -> 44.62388422
B106: 7 | C106: =INDEX(lista.activos,B106) -> Racks | E106: Numero de racks | F106: # | H106: =SUM(I106:J106) -> 0 | I106: 0 | J106: =unidades.racks.activo -> 0
B108: Demanda para asignacion (unidades de costos)
C110: Elemento | D110: Sub-elemento | E110: Unidad | H110: Total | I110: AEP | J110: CSs
B111: 1 | C111: =INDEX(lista.activos,B111) -> Predio | E111: m2 | H111: =area.total.predio -> 114.3506469 | I111: =SUM(I112:I114) -> 80.8827337 | J111: =SUM(J112:J114) -> 33.46791317 | K111: =ROUND(SUM(I111:J111),2)=ROUND(H111,2) -> TRUE
C112: 1 | D112: =INDEX(lista.componentes.predio,C112) -> Area caseta central | E112: m2 | H112: =area.exterior.central.telmex -> 76.23376458 | I112: =I88/$H$88*$H$112 -> 53.92182247 | J112: =J88/$H$88*$H$112 -> 22.31194211 | K112: TRUE
C113: =C112+1 -> 2 | D113: =INDEX(lista.componentes.predio,C113) -> Area sala coubicacion externa | E113: m2 | H113: =area.sala.coubicacion.externa.CS -> 0 | I113: =IF($H$113=0,0,I89/$H$89*$H$113) -> 0 | J113: =IF($H$113=0,0,J89/$H$89*$H$113) -> 0 | K113: TRUE
C114: =C113+1 -> 3 | D114: =INDEX(lista.componentes.predio,C114) -> Area libre | E114: m2 | H114: =H111-SUM(H112:H113) -> 38.11688229 | I114: =I90/$H$90*$H$114 -> 26.96091123 | J114: =J90/$H$90*$H$114 -> 11.15597106 | K114: TRUE
B115: 2 | C115: =INDEX(lista.activos,B115) -> Central del AEP | E115: m2 | H115: =area.salas.central.telmex -> 152.4675292 | I115: =SUM(I116:I125) -> 107.8436449 | J115: =SUM(J116:J125) -> 44.62388422 | K115: TRUE
C116: 1 | D116: =INDEX(lista.componentes.central.telmex,C116) -> Sala MDF/ODF AEP | E116: m2 | H116: =area.sala.MDF.AEP -> 14.448 | I116: =I92/$H$92*$H$116 -> 14.448 | J116: =J92/$H$92*$H$116 -> 0 | K116: TRUE
C117: =C116+1 -> 2 | D117: Sala coubicación CS | E117: m2 | H117: =area.sala.coubicacion.CS -> 22.96 | I117: =IF($H$117=0,0,I93/$H$93*$H$117) -> 0 | J117: =IF($H$117=0,0,J93/$H$93*$H$117) -> 22.96 | K117: TRUE
C118: =C117+1 -> 3 | D118: Sala de control | E118: m2 | H118: =area.sala.control -> 10 | I118: =I94/$H94*$H118 -> 7.073220477 | J118: =J94/$H94*$H118 -> 2.926779523 | K118: TRUE
C119: =C118+1 -> 4 | D119: Sala de switching del AEP | E119: m2 | H119: =area.sala.switching -> 20.52 | I119: =I95/$H95*$H119 -> 20.52 | J119: =J95/$H95*$H119 -> 0 | K119: TRUE
C120: =C119+1 -> 5 | D120: Sala equipos de transmisión del AEP | E120: m2 | H120: =area.sala.transmision -> 20.52 | I120: =I96/$H96*$H120 -> 20.52 | J120: =J96/$H96*$H120 -> 0 | K120: TRUE
C121: 6 | D121: Sala subestacion electrica | E121: m2 | H121: =area.sala.subestacion.electrica -> 43.499416 | I121: =I97/$H97*$H121 -> 30.768096 | J121: =J97/$H97*$H121 -> 12.73132 | K121: TRUE
C122: 7 | D122: Sala planta de emergencia | E122: m2 | H122: =area.sala.emergencia -> 7.043921053 | I122: =I98/$H98*$H122 -> 4.982320663 | J122: 2.06160039 | K122: TRUE
C123: 8 | D123: Sala baterias | E123: m2 | H123: =area.sala.baterias -> 3.57 | I123: =I99/$H99*$H123 -> 2.52513971 | J123: =J99/$H99*$H123 -> 1.04486029 | K123: TRUE
C124: 9 | D124: Espacio de overheads | E124: m2 | H124: =area.espacio.overheads -> 9.906192105 | I124: =SUM(I$116:I$123)/SUM($H$116:$H$123)*$H$124 -> 7.006868085 | J124: =SUM(J$116:J$123)/SUM($H$116:$H$123)*$H$124 -> 2.89932402 | K124: TRUE
C125: 10 | D125: espacio vacante | E125: m2 | I125: =SUM(I$116:I$124)/SUM($H$116:$H$124)*$H$125 -> 0 | J125: =SUM(J$116:J$124)/SUM($H$116:$H$124)*$H$125 -> 0 | K125: TRUE
B126: 3 | C126: Sala coubicación externa | E126: m2 | H126: =area.sala.coubicacion.externa.CS -> 0 | I126: =IF($H$126=0,0,I102/$H$102*$H$126) -> 0 | J126: =IF($H$126=0,0,J102/$H$102*$H$126) -> 0 | K126: TRUE
B127: 4 | C127: Subestación electrica | E127: kW | H127: =consumo.equipos.subestacion.electrica -> 86.998832 | I127: =I103/$H$103*$H$127 -> 61.536192 | J127: =J103/$H$103*$H$127 -> 25.46264 | K127: TRUE
B128: 5 | C128: Fuente de energia de respaldo (planta de emergencia) | E128: kW | H128: =potencia.minima.fuente.energia.respaldo -> 69.5990656 | I128: =I104/$H$104*$H$128 -> 49.2289536 | J128: =J104/$H$104*$H$128 -> 20.370112 | K128: TRUE
B129: 6 | C129: Aire acondicionado | E129: tons | H129: =capacidad.utilizada.aire.acondicionado -> 15.24675292 | I129: =I105/$H$105*$H$129 -> 10.78436449 | J129: =J105/$H$105*$H$129 -> 4.462388422 | K129: TRUE
B130: 7 | C130: =INDEX(lista.activos,B130) -> Racks | E130: # | H130: =H106 -> 0 | I130: =I106 -> 0 | J130: =J106 -> 0 | K130: TRUE
B132: Asignacion de la demanda total de todos los operadores
C134: Elemento | D134: Sub-elemento | E134: Unidad | H134: Total | I134: AEP | J134: CSs
B135: 1 | C135: =INDEX(lista.activos,B135) -> Predio | E135: m2 | H135: =H111 -> 114.3506469 | I135: =IF($H135=0,0,I111/$H111) -> 0.7073220477 | J135: =IF($H135=0,0,J111/$H111) -> 0.2926779523 | K135: =IF(H135=0,SUM(I135:J135)=0,SUM(I135:J135)=1) -> TRUE
C136: 1 | D136: =INDEX(lista.componentes.predio,C136) -> Area caseta central | E136: m2 | H136: 76.23376458 | I136: 0.7073220477 | J136: 0.2926779523 | K136: TRUE
C137: =C136+1 -> 2 | D137: =INDEX(lista.componentes.predio,C137) -> Area sala coubicacion externa | E137: m2 | H137: 0 | I137: 0 | J137: 0 | K137: TRUE
C138: =C137+1 -> 3 | D138: =INDEX(lista.componentes.predio,C138) -> Area libre | E138: m2 | H138: 38.11688229 | I138: 0.7073220477 | J138: 0.2926779523 | K138: TRUE
B139: 2 | C139: =INDEX(lista.activos,B139) -> Central del AEP | E139: m2 | H139: 152.4675292 | I139: 0.7073220477 | J139: 0.2926779523 | K139: TRUE
C140: 1 | D140: =INDEX(lista.componentes.central.telmex,C140) -> Sala MDF/ODF AEP | E140: m2 | H140: 14.448 | I140: =IF($H140=0,0,I116/$H116) -> 1 | J140: 0 | K140: TRUE
C141: =C140+1 -> 2 | D141: Sala coubicación CS | E141: m2 | H141: 22.96 | I141: =IF($H141=0,0,I117/$H117) -> 0 | J141: 1 | K141: TRUE
C142: =C141+1 -> 3 | D142: Sala de control | E142: m2 | H142: 10 | I142: =IF($H142=0,0,I118/$H118) -> 0.7073220477 | J142: 0.2926779523 | K142: TRUE
C143: =C142+1 -> 4 | D143: Sala de switching del AEP | E143: m2 | H143: 20.52 | I143: =IF($H143=0,0,I119/$H119) -> 1 | J143: 0 | K143: TRUE
C144: =C143+1 -> 5 | D144: Sala equipos de transmisión del AEP | E144: m2 | H144: 20.52 | I144: =IF($H144=0,0,I120/$H120) -> 1 | J144: 0 | K144: TRUE
C145: 6 | D145: Sala subestacion electrica | E145: m2 | H145: 43.499416 | I145: =IF($H145=0,0,I121/$H121) -> 0.7073220477 | J145: 0.2926779523 | K145: TRUE
C146: 7 | D146: Sala planta de emergencia | E146: m2 | H146: 7.043921053 | I146: =IF($H146=0,0,I122/$H122) -> 0.7073220477 | J146: 0.2926779523 | K146: TRUE
C147: 8 | D147: Sala baterias | E147: m2 | H147: 3.57 | I147: =IF($H147=0,0,I123/$H123) -> 0.7073220477 | J147: 0.2926779523 | K147: TRUE
C148: 9 | D148: Espacio de overheads | E148: m2 | H148: 9.906192105 | I148: =IF($H148=0,0,I124/$H124) -> 0.7073220477 | J148: 0.2926779523 | K148: TRUE
C149: 10 | D149: espacio vacante | E149: m2 | H149: 0 | I149: =IF($H149=0,0,I125/$H125) -> 0 | J149: 0 | K149: TRUE
B150: 3 | C150: =INDEX(lista.activos,B150) -> Sala coubicación externa | E150: m2 | H150: 0 | I150: =IF($H150=0,0,I126/$H126) -> 0 | J150: 0 | K150: TRUE
B151: 4 | C151: Subestación electrica | E151: kW | H151: 86.998832 | I151: =IF($H151=0,0,I127/$H127) -> 0.7073220477 | J151: 0.2926779523 | K151: TRUE
B152: 5 | C152: Fuente de energia de respaldo (planta de emergencia) | E152: kW | H152: 69.5990656 | I152: =IF($H152=0,0,I128/$H128) -> 0.7073220477 | J152: 0.2926779523 | K152: TRUE
B153: 6 | C153: Aire acondicionado | E153: tons | H153: 15.24675292 | I153: =IF($H153=0,0,I129/$H129) -> 0.7073220477 | J153: 0.2926779523 | K153: TRUE
B154: 6 | C154: =INDEX(lista.activos,B154) -> Aire acondicionado | E154: # | H154: 0 | I154: 0 | J154: 0 | K154: TRUE
B156: Desglose de gastos anuales
H157: Capex | I157: Opex | J157: Gasto anual
C158: Elemento | E158: MXN/año | H158: =N53 -> 531786.057 | I158: 374001.1955 | J158: 905787.2525 | K158: =ROUND(H158, 2)=ROUND(SUM(H169,H186), 2) -> TRUE | L158: =ROUND(I158, 2)=ROUND(SUM(I169,I186), 2) -> TRUE | M158: =ROUND(J158, 2)=ROUND(SUM(J169,J186), 2) -> TRUE
B159: 1 | C159: =INDEX(lista.activos,B159) -> Predio | E159: =$E$158 -> MXN/año | H159: 7803.130954 | I159: 0 | J159: 7803.130954 | K159: =ROUND(H159, 2)=ROUND(SUM(H170,H187), 2) -> TRUE | L159: TRUE | M159: TRUE | O159: =H159=capex.predio -> TRUE | P159: =I159=opex.predio -> TRUE
B160: =B159+1 -> 2 | C160: Central del AEP | E160: =$E$158 -> MXN/año | H160: 244948.1245 | I160: 283880.574 | J160: 528828.6985 | K160: =ROUND(H160, 2)=ROUND(SUM(H171,H188), 2) -> TRUE | L160: TRUE | M160: TRUE | O160: =H160=capex.central.telmex -> TRUE | P160: =I160=opex.central.telmex -> TRUE
B161: =B160+1 -> 3 | C161: Sala coubicación externa | E161: MXN/año | H161: 0 | I161: 0 | J161: 0 | K161: =ROUND(H161, 2)=ROUND(SUM(H172,H189), 2) -> TRUE | L161: TRUE | M161: TRUE | O161: =H161=capex.sala.coubicacion.externa -> TRUE | P161: =I161=opex.sala.coubicacion.externa -> TRUE
B162: 4 | C162: Subestación electrica | E162: MXN/año | H162: 126712.4155 | I162: 54112.48948 | J162: 180824.905 | K162: =ROUND(H162, 2)=ROUND(SUM(H173,H190), 2) -> TRUE | L162: TRUE | M162: TRUE | O162: =H162=capex.subestacion.electrica -> TRUE | P162: =I162=opex.subestacion.electrica -> TRUE
B163: 5 | C163: Fuente de energia de respaldo (planta de emergencia) | E163: MXN/año | H163: 111183.6126 | I163: 34926.33649 | J163: 146109.9491 | K163: =ROUND(H163, 2)=ROUND(SUM(H174,H191), 2) -> TRUE | L163: TRUE | M163: TRUE | O163: =H163=capex.fuente.energia.respaldo -> TRUE | P163: =I163=opex.fuente.energia.respaldo -> TRUE
B164: 6 | C164: Aire acondicionado | E164: MXN/año | H164: 41138.77347 | I164: 1081.795529 | J164: 42220.569 | K164: =ROUND(H164, 2)=ROUND(SUM(H175,H192), 2) -> TRUE | L164: TRUE | M164: TRUE | O164: =H164=capex.aire.acondicionado -> TRUE | P164: =I164=opex.aire.acondicionado -> TRUE
B165: 7 | C165: =INDEX(lista.activos,B165) -> Racks | E165: MXN/año | H165: 0 | I165: 0 | J165: 0 | K165: =ROUND(H165, 2)=ROUND(SUM(H176,H193), 2) -> TRUE | L165: TRUE | M165: TRUE | O165: =H165=capex.racks -> TRUE | P165: =I165=opex.racks -> TRUE
C167: AEP
H168: Capex | I168: Opex | J168: Gasto anual
C169: Elemento | E169: MXN/año | H169: =SUM(H170:H175) -> 376144.0028 | I169: =SUM(I170:I175) -> 264539.2915 | J169: 640683.2943
B170: 1 | C170: =INDEX(lista.activos,B170) -> Predio | E170: =$E$158 -> MXN/año | H170: =H159*$I$135 -> 5519.326565 | I170: =I159*$I$135 -> 0 | J170: 5519.326565
B171: =B170+1 -> 2 | C171: Central del AEP | E171: =$E$158 -> MXN/año | H171: =H160*$I139 -> 173257.209 | I171: =I160*$I139 -> 200794.9889 | J171: 374052.1979
B172: =B171+1 -> 3 | C172: Sala coubicación externa | E172: MXN/año | H172: =H161*$I150 -> 0 | I172: 0 | J172: 0
B173: 4 | C173: Subestación electrica | E173: MXN/año | H173: =H162*$I151 -> 89626.4852 | I173: 38274.95687 | J173: 127901.4421
B174: 5 | C174: Fuente de energia de respaldo (planta de emergencia) | E174: MXN/año | H174: =H163*$I152 -> 78642.62052 | I174: 24704.16785 | J174: 103346.7884
B175: 6 | C175: Aire acondicionado | E175: MXN/año | H175: =H164*$I153 -> 29098.36149 | I175: 765.1778287 | J175: 29863.53932
B176: 7 | C176: =INDEX(lista.activos,B176) -> Racks | E176: MXN/año | H176: 0 | I176: 0 | J176: 0
C178: Servicios | H178: =SUM(H179:H182) -> 376144.0028 | I178: =SUM(I179:I182) -> 264539.2915 | J178: =SUM(J179:J182) -> 640683.2943
B179: 1 | C179: =INDEX(lista.servicios,B179) -> Coubicación | E179: =$E$158 -> MXN/año | H179: =SUMPRODUCT(H170:H176,$H$8:$H$14) -> 111696.3222 | I179: =SUMPRODUCT(I170:I176,$H$8:$H$14) -> 123052.9384 | J179: 234749.2606
B180: =B179+1 -> 2 | C180: =INDEX(lista.servicios,B180) -> Subestación electrica | E180: MXN/año | H180: =SUMPRODUCT(H170:H176,$I$8:$I$14) -> 136585.717 | I180: =SUMPRODUCT(I170:I176,$I$8:$I$14) -> 92697.96459 | J180: 229283.6816
B181: =B180+1 -> 3 | C181: =INDEX(lista.servicios,B181) -> Fuente de energia de respaldo | E181: MXN/año | H181: =SUMPRODUCT(H170:H176,$J$8:$J$14) -> 90100.74168 | I181: =SUMPRODUCT(I170:I176,$J$8:$J$14) -> 37983.46124 | J181: 128084.2029
B182: 4 | C182: =INDEX(lista.servicios,B182) -> Aire acondicionado | E182: MXN/año | H182: =SUMPRODUCT(H170:H176,$K$8:$K$14) -> 37761.22194 | I182: =SUMPRODUCT(I170:I176,$K$8:$K$14) -> 10804.92728 | J182: 48566.14922
C184: CSs
H185: Capex | I185: Opex | J185: Gasto anual
C186: Elemento | E186: MXN/año | H186: =SUM(H187:H193) -> 155642.0542 | I186: =SUM(I187:I193) -> 109461.9041 | J186: =SUM(J187:J193) -> 265103.9583
B187: 1 | C187: =INDEX(lista.activos,B187) -> Predio | E187: =$E$158 -> MXN/año | H187: =H159-H170 -> 2283.804389 | I187: =I159-I170 -> 0 | J187: 2283.804389
B188: =B187+1 -> 2 | C188: Central del AEP | E188: =$E$158 -> MXN/año | H188: =H160-H171 -> 71690.91549 | I188: 83085.5851 | J188: 154776.5006
B189: =B188+1 -> 3 | C189: Sala coubicación externa | E189: MXN/año | H189: 0 | I189: 0 | J189: 0
B190: 4 | C190: Subestación electrica | E190: MXN/año | H190: 37085.93029 | I190: 15837.53261 | J190: 52923.46291
B191: 5 | C191: Fuente de energia de respaldo (planta de emergencia) | E191: MXN/año | H191: 32540.99206 | I191: 10222.16865 | J191: 42763.1607
B192: 6 | C192: Aire acondicionado | E192: MXN/año | H192: 12040.41198 | I192: 316.6177002 | J192: 12357.02968
B193: 7 | C193: Racks | E193: MXN/año | H193: =H165-H176 -> 0 | I193: =I165-I176 -> 0 | J193: =J165-J176 -> 0
C195: Servicios | H195: =SUM(H196:H199) -> 155642.0542 | I195: =SUM(I196:I199) -> 109461.9041 | J195: =SUM(J196:J199) -> 265103.9583
B196: 1 | C196: =INDEX(lista.servicios,B196) -> Coubicación | E196: =$E$158 -> MXN/año | H196: =SUMPRODUCT(H$187:H$193,asignacion.coubicacion.CSs) -> 46218.0572 | I196: =SUMPRODUCT(I$187:I$193,asignacion.coubicacion.CSs) -> 50917.23373 | J196: =SUMPRODUCT(J$187:J$193,asignacion.coubicacion.CSs) -> 97135.29092
B197: =B196+1 -> 2 | C197: =INDEX(lista.servicios,B197) -> Subestación electrica | E197: MXN/año | H197: =SUMPRODUCT(H187:H193,asignacion.subestacion.electrica.CSs) -> 56516.86962 | I197: =SUMPRODUCT(I187:I193,asignacion.subestacion.electrica.CSs) -> 38356.85674 | J197: =SUMPRODUCT(J187:J193,asignacion.subestacion.electrica.CSs) -> 94873.72637
B198: =B197+1 -> 3 | C198: =INDEX(lista.servicios,B198) -> Fuente de energia de respaldo | E198: MXN/año | H198: =SUMPRODUCT(H187:H193,asignacion.fuente.energia.respaldo.CSs) -> 37282.16964 | I198: =SUMPRODUCT(I187:I193,asignacion.fuente.energia.respaldo.CSs) -> 15716.91663 | J198: =SUMPRODUCT(J187:J193,asignacion.fuente.energia.respaldo.CSs) -> 52999.08627
B199: 4 | C199: =INDEX(lista.servicios,B199) -> Aire acondicionado | E199: MXN/año | H199: =SUMPRODUCT(H187:H193,asignacion.aireacondicionado.CSs) -> 15624.95775 | I199: =SUMPRODUCT(I187:I193,asignacion.aireacondicionado.CSs) -> 4470.896955 | J199: =SUMPRODUCT(J187:J193,asignacion.aireacondicionado.CSs) -> 20095.85471

Sheet Servicios complementarios
D1: Servicios complementarios
D3: Elemento | E3: Unidad | F3: Valor | G3: Nombre 1 | H3: Check / Indices | I3: Nombre 2
A5: Cobros no recurrentes
A7: Gastos de instalación coubicación
B8: Costos unitarios
D9: Obra civil CI | E9: MXN por m2 | F9: 7113
D10: Obra civil CE | E10: MXN por m2 | F10: 16463
D11: Instalación Eléctrica | E11: MXN por m2 | F11: 2388
D12: Clima (Equipo) | E12: MXN | F12: 22000
D13: Racks | E13: MXN por unidad | F13: 6435
B15: Output - Cobros no Recurrentes - Contraprestación Pago Único
C16: Coubicacion Basica
D17: ="Gastos de instalación Co-ubicación " & H17 & "m2 Interna" -> Gastos de instalación Co-ubicación 20m2 Interna | E17: MXN | F17: =($F$9+$F$11)*H17+$F$12 -> 212020 | H17: =espacio.coubicacion.basica -> 20 | I17: m2
D18: ="Gastos de instalación Co-ubicación " & H18 & "m2 Externa" -> Gastos de instalación Co-ubicación 20m2 Externa | E18: MXN | F18: =($F$10+$F$11)*H18+$F$12 -> 399020 | H18: =espacio.coubicacion.basica -> 20 | I18: m2
C20: Coubicacion Equipada
D21: Gastos de instalación Co-ubicación 1 Rack Interna | E21: MXN | F21: =$F$28/$H$28*calculos.secundarios.dimension.racks+$F$13 -> 26344.07407
D22: Gastos de instalación Co-ubicación 1 Rack externa | F22: =$F$29/$H$29*calculos.secundarios.dimension.racks+$F$13 -> 41927.40741
C24: Coubicacion Cerrada
D25: ="Gastos de instalación Co-ubicación " & H25 & "m2 Interna" -> Gastos de instalación Co-ubicación 4m2 Interna | E25: MXN | F25: =($F$9+$F$11)*H25+$F$12 -> 60004 | H25: =L!$C$66 -> 4 | I25: m2
D26: ="Gastos de instalación Co-ubicación " & H26 & "m2 Externa" -> Gastos de instalación Co-ubicación 4m2 Externa | E26: MXN | F26: =($F$10+$F$11)*H26+$F$12 -> 97404 | H26: =L!$C$66 -> 4 | I26: m2
D28: ="Gastos de instalación Co-ubicación " & H28 & "m2 Interna" -> Gastos de instalación Co-ubicación 9m2 Interna | E28: MXN | F28: =($F$9+$F$11)*H28+$F$12 -> 107509 | H28: =L!$C$67 -> 9 | I28: m2
D29: ="Gastos de instalación Co-ubicación " & H29 & "m2 Externa" -> Gastos de instalación Co-ubicación 9m2 Externa | E29: MXN | F29: =($F$10+$F$11)*H29+$F$12 -> 191659 | H29: =L!$C$67 -> 9 | I29: m2
A31: Gastos de instalación metro lineal de construcción de escalleria
B32: Costos unitarios
D33: Escalerilla 6" para F.O. incluye fijación en losa | E33: MXN, 50 metros lineales | F33: 23100
D34: Escalerilla de aluminio de 6" a 8" para cableado UTP Y/O Coaxial | E34: MXN, 50 metros lineales | F34: 19250
B36: Output - Cobros no Recurrentes - Contraprestación Pago Único
D38: Gastos de Instalación Metro lineal de construcción de escalerilla | E38: MXN | F38: =SUM(F33:F34)/50 -> 847
A40: Gastos de instalación metro lineal de ductería para coubicación externa
B41: Costos unitarios
D42: Trabajos iniciales | E42: MXN, 25 metros lineales | F42: 75474.5625
B44: Output - Cobros no Recurrentes - Contraprestación Pago Único
D45: G.I. de Metro Lineal de Ductería para Co-ubicación Externa | E45: MXN | F45: =F42/25 -> 3018.9825
A47: Adecuaciones en la coubicación
B48: Costos unitarios
D49: Trabajos iniciales | E49: MXN | F49: 1603.13
B51: Output - Cobros no Recurrentes - Contraprestación Pago Único
D52: Cambio en la Capacidad de Interruptor Termo magnético | E52: MXN | F52: =F49 -> 1603.13
A55: Cobros recurrentes
A57: Metro lineal de escalerilla
B58: Costos unitarios
D59: Cuota de Mantenimiento Mensual | E59: MXN | F59: 1.191556333
D60: Cuota de Gastos de Administración Mensual | E60: MXN | F60: 1.304144333
D61: Costo de uso de Escalerilla | E61: MXN | F61: 9.688004252
B63: Output - Contraprestación Mensual
D64: Metro lineal de escalerilla | E64: MXN | F64: =SUM(F59:F61) -> 12.18370492
A66: Metro Lineal de Ductería para Co-ubicación Externa
B67: Costos unitarios
D68: Cuota de Mantenimiento Mensual | E68: MXN | F68: 1.191556333
D69: Cuota de Gastos de Administración Mensual | E69: MXN | F69: 1.304144333
D70: Costo de uso de Escalerilla | E70: MXN | F70: 12.56779767
B72: Output - Contraprestación Mensual
D73: Metro Lineal de Ductería para Co-ubicación Externa | E73: MXN | F73: =SUM(F68:F70) -> 15.06349834
A75: Cobros adicionales del interruptor termo magnético
B76: Drivers y costos unitarios
D77: Tarifa | E77: KWh | F77: 1.89
D78: Amperaje por Metro cuadrado | E78: AMP | F78: 2.8
D79: Capacidad | E79: Amperes por tablilla | F79: 15
D80: Metros | E80: m2 | F80: 20
D81: Tablillas promedio por Coubicación | E81: # | F81: =F80*F78/F79 -> 3.733333333
D82: Metros por Tablilla | E82: m2 | F82: =F80/F81 -> 5.357142857
D84: Concepto | E84: Amp | F84: V | G84: KW | H84: KWH | I84: Tablilla
D85: Corriente Alterna Esencial | E85: =F79 -> 15 | F85: 220 | G85: =E85*F85*0.9*2/1000 -> 5.94 | H85: =G85*24*30 -> 4276.8 | I85: =H85*$F$77 -> 8083.152
D86: Corriente Directa Respaldo 4 hrs | E86: =F79 -> 15 | F86: 48 | G86: =E86*F86*1.1/1000 -> 0.792 | H86: =G86*24*30 -> 570.24 | I86: =H86*$F$77 -> 1077.7536
D87: TOTAL | I87: =SUM(I85:I86) -> 9160.9056
B89: Output - Contraprestación Mensual
D90: Capacidad | E90: Costo Tablilla | F90: Costo por Metro2
E91: =I87 -> 9160.9056
D92: 15 | E92: 9160.9056 | F92: =E92/$F$82 -> 1710.035712
D93: 20 | E93: 12214.5408 | F93: =E93/$F$82 -> 2280.047616
D94: 30 | E94: 18321.8112 | F94: 3420.071424
D95: 40 | E95: 24429.0816 | F95: 4560.095232
D96: 50 | E96: 30536.352 | F96: 5700.11904
D97: 60 | E97: 36643.6224 | F97: 6840.142848
D98: 70 | E98: 42750.8928 | F98: 7980.166656
D99: 80 | E99: 48858.1632 | F99: 9120.190464
D100: 90 | E100: 54965.4336 | F100: 10260.21427
D101: 100 | E101: 61072.704 | F101: 11400.23808
D102: 150 | E102: 91609.056 | F102: 17100.35712
D103: 200 | E103: 122145.408 | F103: 22800.47616
